Cogmind - Beta 16 @@@ ROGUE MODE // 2025.11.09 @ 19:00:43 Player: TapeIsSticky Result: Heading to fleet! Performance ------------- Evolutions (9) 4500 Regions Visited (30) 6000 Robots Destroyed (352) 1760 Value Destroyed (15199) 15199 Prototype IDs (117) 2340 Alien Tech Used (7) 1400 Bonus (13527) 13527 TOTAL SCORE: 44726 Bonus ------- High Alert Combat Kills 576 Follower Combat Kills 3104 Network Hubs Disabled 200 Registered with UFD 300 Met Optimus in HQ 500 Met Data Miner 300 Met Zhirov 300 Built Enhanced Grunts 300 A7 Reached Mainframe 300 Met R17 at Cetus 500 Used Core Reset Matrix 3000 Met R17 at Research 2000 Win 3000 Friendly Fire -853 Cogmind --------- Core Integrity 575/1600 Matter 106/300 Energy 99/100 System Corruption 4% Temperature Cool (3) Movement Flying (27) Location To Fleet Rendezvous Parts ------- > --- POWER (2) -------- (None) > --- PROPULSION (8) --- Cooled Q-thruster > --- UTILITY (12) ----- Advanced Signal Interpreter Experimental Terrain Scan Processor Advanced Targeting Computer Advanced Hacking Suite Improved System Shield > --- WEAPON (3) ------- (None) > --- INVENTORY (5) ---- Biometal Medium Treads Advanced Heavy Treads Peak State ------------ > --- POWER ------------ Vortex Chain Reactor > --- PROPULSION ------- Advanced Heavy Siege Treads High-density Centrium Heavy Treads Experimental Heavy Siege Treads Experimental Heavy Siege Treads > --- UTILITY ---------- Huge Storage Unit Plexus Tether Long-range Terrain Scanner Experimental Terrain Scan Processor Advanced Targeting Computer Advanced Melee Analysis Suite Advanced Weapon Cycler Improved Transmission Jammer Experimental Force Field Improved System Shield > --- WEAPON ----------- Improved KE Penetrator Compact Tesla Bomb Launcher > --- INVENTORY -------- High-density Centrium Heavy Treads Experimental VSS Leg Experimental VSS Leg Experimental VSS Leg Experimental Armored Exoskeleton Concept Biometal Exoskeleton Advanced Energy Well Advanced Matter Compressor Advanced Force Field Advanced Dynamic Insulation System Long-range Tractor Beam Crosscalibrator Transdimensional Reconstructor Subatomic Replicator Long-range Proton Cannon [Rating: 206] Favorites ----------- Power Improved Ion Engine Engine Improved Ion Engine Power Core Neutrino Core Reactor Quantum Reactor Propulsion Light Treads Treads Light Treads Leg Myomer Leg Wheel Overtuned Huge Scrapsphere Hover Unit Cooled Airjet Flight Unit Cooled Field Propulsion Drive Utility Huge Storage Unit Device Scrap Suit Storage Huge Storage Unit Processor Advanced Targeting Computer Hackware Advanced Hacking Suite Protection Hardened Medium Armor Plating Weapon Minigun Energy Gun Gatling Laser Energy Cannon Heavy Plasma Cannon Ballistic Gun Minigun Ballistic Cannon Graviton Cannon Launcher Compact Tesla Bomb Launcher Special Weapon CPS Tube Impact Weapon Core Stripper Slashing Weapon Sigix Broadsword Build | -11 -10 -10 -9 -9 -8 -8 -8 -8 -6 -6 -6 -6 -5 -5 -5 -5 -5 -5 -4 -4 -4 -4 -3 -3 -3 -3 -2 -2 -1 -1 ------- Run | Yrd Mat Min Mat Min Mat Sto Rec Scr Fac Low Low Dat Pro Fac Ext Cet Arc Hub Fac Upp Upp Zhi Pro Res Qua Frg Res Tes Acc Com Slots Evolved 18 | . . . 2 . 2 . . . 4 . . . . 2 . . . . 2 . . . . 2 . . 2 . 2 . Power 1 | . . . . . . . . . 1 . . . . . . . . . . . . . . . . . . . . . Propulsion 6 | . . . 1 . . . . . 1 . . . . . . . . . 1 . . . . 2 . . 1 . . . Utility 10 | . . . 1 . 1 . . . 2 . . . . 2 . . . . 1 . . . . . . . 1 . 2 . Weapon 1 | . . . . . 1 . . . . . . . . . . . . . . . . . . . . . . . . . Parts Attached 230 | 7 4 7 18 . 19 20 . 6 6 2 8 . 1 6 11 13 1 5 10 1 . 8 3 18 21 9 3 13 3 7 Power 24 | 1 1 2 1 . . 2 . . 1 1 2 . . 1 2 2 . . 1 . . 1 . 1 2 1 . 1 . 1 Engine 9 | 1 1 2 1 . . 2 . . 1 . . . . . 1 . . . . . . . . . . . . . . . Core 5 | . . . . . . . . . . 1 2 . . 1 1 . . . . . . . . . . . . . . . Reactor 10 | . . . . . . . . . . . . . . . . 2 . . 1 . . 1 . 1 2 1 . 1 . 1 Propulsion 70 | 2 . 1 7 . 8 9 . . 1 1 2 . . 1 2 1 . . 1 . . 2 1 7 4 4 1 10 . 5 Treads 41 | 2 . 1 6 . 6 9 . . 1 . 1 . . 1 2 1 . . . . . 1 . . 2 4 1 2 . 1 Leg 16 | . . . . . . . . . . . . . . . . . . . 1 . . 1 1 7 2 . . 4 . . Wheel 2 | . . . . . . . . . . 1 1 . . . . . . . . . . . . . . . . . . . Hover 1 | . . . . . 1 . . . . . . . . . . . . . . . . . . . . . . . . . Flight 10 | . . . 1 . 1 . . . . . . . . . . . . . . . . . . . . . . 4 . 4 Utility 78 | 2 2 1 4 . 5 4 . 2 2 . 2 . 1 2 5 4 1 4 6 . . 3 2 6 11 3 1 2 3 . Device 44 | 1 . 1 . . 1 4 . 2 1 . 2 . 1 . 2 1 1 2 5 . . 2 1 4 10 . 1 1 1 . Storage 5 | 1 2 . . . . . . . . . . . . . . 1 . . . . . . . 1 . . . . . . Processor 10 | . . . . . 2 . . . . . . . . 2 . . . . 1 . . . . 1 . 2 . 1 1 . Hackware 4 | . . . . . . . . . . . . . . . . . . 2 . . . . . . . 1 . . 1 . Protection 15 | . . . 4 . 2 . . . 1 . . . . . 3 2 . . . . . 1 1 . 1 . . . . . Artifact . | . . . . . . . . . . . . . . . . . . . . . . . . . . . . . . . Weapon 58 | 2 1 3 6 . 6 5 . 4 2 . 2 . . 2 2 6 . 1 2 1 . 2 . 4 4 1 1 . . 1 Energy Gun 6 | 1 . . . . 1 . . 1 . . 1 . . . . 1 . . . . . 1 . . . . . . . . Energy Cannon 8 | . . . . . . . . . 1 . . . . . . . . 1 1 . . . . 1 1 1 1 . . 1 Ballistic Gun 28 | 1 1 1 5 . 4 3 . . 1 . 1 . . 2 2 4 . . 1 . . . . 2 . . . . . . Ballistic Cannon 2 | . . 1 . . . . . . . . . . . . . . . . . . . . . . 1 . . . . . Launcher 7 | . . 1 1 . 1 2 . . . . . . . . . . . . . 1 . . . 1 . . . . . . Special Weapon 5 | . . . . . . . . 3 . . . . . . . 1 . . . . . 1 . . . . . . . . Impact Weapon 1 | . . . . . . . . . . . . . . . . . . . . . . . . . 1 . . . . . Slashing Weapon 1 | . . . . . . . . . . . . . . . . . . . . . . . . . 1 . . . . . Piercing Weapon . | . . . . . . . . . . . . . . . . . . . . . . . . . . . . . . . Special Melee Weapon . | . . . . . . . . . . . . . . . . . . . . . . . . . . . . . . . Unidentified Prototypes 38 | . . 1 2 . 3 2 . . 1 . . . . 1 . 5 . 1 1 . . 5 . 4 9 . . 2 . 1 Corrupted Parts 3 | . . . . . . . . . . . . . . . . . . 1 . . . . 1 . . 1 . . . . System Corruption 20 | . . . . . . . . . . . . . . . . . . 4 . . . . 6 . . 10 . . . . Parts Lost 47 | . 1 3 2 . . 2 . . . . . . . . 2 . . 1 1 1 . . . . 5 12 5 1 . 11 Power 6 | . . 1 . . . . . . . . . . . . . . . . . . . . . . 1 2 1 . . 1 Propulsion 13 | . . 1 2 . . . . . . . . . . . . . . . . . . . . . 1 3 1 . . 5 Utility 16 | . . . . . . 1 . . . . . . . . 2 . . . . . . . . . 3 3 2 1 . 4 Weapon 12 | . 1 1 . . . 1 . . . . . . . . . . . 1 1 1 . . . . . 4 1 . . 1 Highest Loss Streak 10 | . 1 2 1 . . 1 . . . . . . . . 1 . . 1 1 1 . . . . 3 5 5 1 . 10 To Critical Strikes 2 | . . . . . . . . . . . . . . . . . . . 1 . . . . . . 1 . . . . Average Backups 23 | 2 9 22 24 25 24 24 25 24 23 23 24 25 25 24 24 22 23 23 23 23 23 24 25 22 22 20 15 7 4 4 Power 1 | . 1 1 1 1 1 1 1 1 1 1 1 2 2 1 1 1 2 1 1 1 1 1 1 1 . . . . . . Propulsion 5 | . 2 5 6 6 6 7 8 7 7 7 7 7 7 7 6 2 2 2 2 3 4 5 6 3 3 1 6 2 . 2 Utility 8 | . 2 9 7 8 8 9 9 9 9 8 8 8 8 7 8 9 9 9 11 11 10 10 11 11 9 9 5 2 . . Weapon 6 | . 1 5 9 10 8 7 7 6 6 6 6 7 7 7 7 8 9 9 6 6 7 5 4 4 5 4 1 1 2 . Tool/Special . | . . . . . . . . . . . . . . . . . . . . . . . . . . . . . . . Unused Backups 68 | . 3 1 9 . 9 . . 1 8 1 1 . 1 7 2 8 . 1 2 . . . . 3 2 1 . 4 1 3 Power 1 | . . . . . . . . . . . . . . 1 . . . . . . . . . . . . . . . . Propulsion 24 | . 1 1 1 . 6 . . 1 2 . . . . 1 1 5 . . . . . . . . . . . 2 . 3 Utility 29 | . 1 . 5 . 3 . . . 5 . 1 . . 2 1 2 . . 2 . . . . 3 2 . . 2 . . Weapon 12 | . 1 . 3 . . . . . 1 1 . . 1 3 . 1 . 1 . . . . . . . . . . . . Tool/Special 2 | . . . . . . . . . . . . . . . . . . . . . . . . . . 1 . . 1 . Average Slot Usage (%) 91 | . 99 99 99 100 99 99 100 95 89 93 86 86 86 82 82 87 87 88 80 84 84 70 84 99 91 75 66 62 52 52 Engine 6 | . 14 14 11 11 9 9 9 9 12 6 . . . . 4 . . . . . . . . . . . . . . . Core 1 | . . . . . . . . . . 5 12 13 13 11 5 5 5 2 . . . . . . . . . . . . Reactor 2 | . . . . . . . . . . . . . . . . 4 5 8 10 10 10 10 10 9 8 7 3 2 . 1 Treads 19 | . 28 28 32 33 27 26 27 27 25 26 13 13 13 5 5 10 11 11 5 5 5 6 10 . 3 14 14 7 . . Leg 2 | . . . . . . . . . . . . . . . . . . . 1 5 5 5 5 32 26 3 . 6 . . Wheel 1 | . . . . . . . . . . . 5 6 6 5 5 5 5 5 5 5 5 3 . . . . . . . . Device 14 | . 14 14 11 11 9 16 18 13 11 13 13 13 20 17 14 17 19 19 19 20 21 21 15 18 17 16 14 7 7 6 Storage 7 | . 14 14 11 11 9 9 9 9 6 6 6 6 6 5 5 5 5 5 5 5 5 5 5 4 4 4 4 1 . . Processor 8 | . . . . . 8 9 9 9 6 6 6 6 6 12 14 11 8 5 9 10 10 10 10 13 14 15 17 19 23 20 Hackware 1 | . . . . . . . . . . . . . . . . . . 2 5 5 5 5 5 4 4 2 4 4 5 8 Protection 2 | . . . 11 11 9 1 . . 5 6 6 6 . 3 4 4 5 5 1 . . 1 5 . . . . . . . Energy Gun 1 | . 13 . . . . . . 1 6 6 2 . . . . . . . . . . . . . . . . . . . Ballistic Gun 18 | . 14 23 21 22 26 26 27 25 9 6 10 13 18 13 16 16 16 17 14 13 15 . 15 10 3 . 3 . . . Peak Build Rating 206 | 7 9 16 22 20 34 38 36 43 59 64 77 77 77 95 96 115 113 117 140 140 136 149 149 160 199 199 206 190 95 116 Average Rating 70 | 5 7 10 19 20 27 34 36 37 53 61 74 77 76 90 94 109 111 114 128 136 135 118 145 157 174 181 188 137 90 94 On Entrance 84 | . 7 9 12 20 20 30 36 36 41 59 62 77 77 77 93 96 111 113 111 136 136 136 149 145 158 196 172 153 72 94 Avg Prop Armor Cover (%) 9 | . . . . . 5 . . . . . 6 10 13 9 9 10 11 11 9 13 14 11 2 . 2 1 . 25 . 11 Naked Turns . | . . . . . . . . . . . . . . . . . . . . . . . . . . . . . . . Heaviest Build 165 | 13 88 92 102 99 105 107 102 104 127 130 135 135 128 139 137 148 150 155 159 157 151 153 165 165 155 157 142 132 15 33 Greatest Support 370 | 40 40 40 60 60 60 62 62 62 82 82 82 50 20 70 70 20 20 20 80 80 20 160 160 193 260 290 370 370 21 42 Greatest Overweight (x) 16 | . 2 2 2 1 2 1 1 1 1 16 6 6 6 6 6 7 7 7 7 7 7 6 1 . 1 . . 2 . . Average Overweight (x) 2 | . . 2 1 1 1 1 1 1 1 1 3 5 6 5 5 6 7 7 5 6 7 2 . . . . . . . . Largest Inventory Capacity 25 | 8 25 25 25 25 25 25 25 25 25 25 25 25 25 25 25 25 25 25 25 25 25 25 25 25 25 25 25 25 5 5 Average Capacity 24 | 7 13 25 25 25 25 25 25 25 25 25 25 25 25 25 25 25 25 25 25 25 25 25 25 25 25 25 25 11 5 5 Most Carried 25 | 3 21 25 25 25 25 25 25 25 25 25 25 25 25 25 25 25 25 25 25 25 25 25 25 25 25 25 21 20 5 5 Average Carried 23 | 2 9 23 24 25 24 24 25 24 24 25 24 25 25 24 24 24 24 24 24 24 24 24 24 24 24 23 20 9 4 4 Final Capacity 25 | 8 25 25 25 25 25 25 25 25 25 25 25 25 25 25 25 25 25 25 25 25 25 25 25 25 25 25 25 5 5 5 Final Carried 25 | 3 20 25 25 25 25 25 25 25 25 25 25 25 25 25 24 25 25 24 25 25 25 25 25 25 25 20 20 5 5 3 Scrap Suit Usage (%) 13 | . . . . . . . . 22 65 . 93 100 100 100 18 . 6 . . 4 4 . . . . . . . . . Parts Cannibalized 18 | . . . . . . . . . 1 . 2 . . . 13 . . . . 2 . . . . . . . . . . Class Distribution -------------------- 38% | Gunner 15% | Mutant 10% | Scavenger-Tank 7% | Scavenger-Scrapper 7% | Commander-Scrapper 4% | Scavenger-Mutant 4% | Alien-Mutant Dominant Class ---------------- Mutant | -10/Materials Mutant | -10/Mines Scavenger-Mutant | -9/Materials Mutant | -9/Mines Gunner | -8/Materials Gunner | -8/Storage Gunner | -8/Recycling Gunner | -8/Scraptown Scavenger-Gunner | -6/Factory Commander-Gunner | -6/Lower Caves Scavenger-Scrapper | -6/Lower Caves Scavenger-Scrapper | -6/Data Miner Scavenger-Scrapper | -5/Proximity Caves Scavenger-Scrapper | -5/Factory Commander-Scrapper | -5/Extension Commander-Scrapper | -5/Cetus Commander-Scrapper | -5/Archives Commander-Scrapper | -5/Hub_04(d) Scavenger-Tank | -4/Factory Scavenger-Tank | -4/Upper Caves Scavenger-Tank | -4/Upper Caves Scavenger-Mutant | -4/Zhirov Scavenger-Tank | -3/Proximity Caves Scavenger-Skirmisher | -3/Research Alien-Mutant | -3/Quarantine Alien-Mutant | -3/Protoforge Skirmisher | -2/Research Skirmisher | -2/Testing Scout | -1/Access Hacker-Scout | -1/Command Resources | -11 -10 -10 -9 -9 -8 -8 -8 -8 -6 -6 -6 -6 -5 -5 -5 -5 -5 -5 -4 -4 -4 -4 -3 -3 -3 -3 -2 -2 -1 -1 ----------- Run | Yrd Mat Min Mat Min Mat Sto Rec Scr Fac Low Low Dat Pro Fac Ext Cet Arc Hub Fac Upp Upp Zhi Pro Res Qua Frg Res Tes Acc Com Matter Collected 13099 | 306 322 294 1073 . 1318 1778 86 605 334 293 258 . 137 332 580 272 278 282 721 351 118 192 126 909 917 803 281 119 . 14 Remotely 1031 | . . . . . . . . . . . . . . . . . . . 608 . . . . . 240 183 . . . . Salvage Created 17290 | 155 739 125 1459 12 1598 2439 419 . 75 . 658 . 180 619 1132 . 623 361 1000 447 85 337 . 428 1318 2882 199 . . . Parts 906 | 9 47 4 84 1 81 142 22 . 14 . 17 . 12 50 45 . 29 29 49 24 4 2 . 24 56 156 5 . . . Haulers Intercepted 18 | . 2 . 5 . 6 4 . . . . . . . . . . . . 1 . . . . . . . . . . . Recyclers Shooed 14 | . 4 . 1 . 4 . 1 . . . . . . . 3 . . . . . . . . . 1 . . . . . Parts Field Recycled . | . . . . . . . . . . . . . . . . . . . . . . . . . . . . . . . Retrieved Matter . | . . . . . . . . . . . . . . . . . . . . . . . . . . . . . . . Parts Self-Destructed 96 | . . . . . . . . . . 19 40 . 11 . . . . . . 21 4 1 . . . . . . . . Prevented 4 | . . . . . . . . . . . . . . . . . . . . 3 . . 1 . . . . . . . Parts Restored . | . . . . . . . . . . . . . . . . . . . . . . . . . . . . . . . Kills | -11 -10 -10 -9 -9 -8 -8 -8 -8 -6 -6 -6 -6 -5 -5 -5 -5 -5 -5 -4 -4 -4 -4 -3 -3 -3 -3 -2 -2 -1 -1 ------- Run | Yrd Mat Min Mat Min Mat Sto Rec Scr Fac Low Low Dat Pro Fac Ext Cet Arc Hub Fac Upp Upp Zhi Pro Res Qua Frg Res Tes Acc Com Combat Hostiles Destroyed 265 | . 18 7 25 . 26 45 4 . 1 . 10 . 8 8 11 . 4 4 13 7 1 . . 4 16 48 5 . . . Melee 13 | . . . . . . . . . . . . . . . . . . . . . . . . . 2 11 . . . . Guns 185 | . 18 3 25 . 26 41 4 . . . 4 . 3 8 11 . 4 4 13 5 1 . . 4 11 . . . . . Cannons 21 | . . 1 . . . . . . . . 4 . . . . . . . . . . . . . 2 14 . . . . AOE 25 | . . 3 . . . 4 . . . . 2 . 5 . . . . . . 2 . . . . . 6 3 . . . Classes Destroyed 26 | 2 7 2 1 . 2 1 . . 1 . 1 . 2 . . . . 1 . . 1 . . 2 1 2 . . . . Worker 14 | . 1 . 2 . 4 3 . . . . . . . 1 . . . . 3 . . . . . . . . . . . Builder 12 | . 1 . 1 1 . . 1 . . . . . . 3 . . . 1 1 . . . . 1 . 2 . . . . Tunneler 3 | 3 . . . . . . . . . . . . . . . . . . . . . . . . . . . . . . Hauler 18 | . 2 . 5 . 6 4 . . . . . . . . . . . . 1 . . . . . . . . . . . Recycler 12 | 1 1 . 2 . . 1 3 . . . . . . . 1 . . . . . . . . 1 2 . . . . . Minesweeper 1 | . . . . . . . . . . . . . . . . . . . . . 1 . . . . . . . . . Mechanic 1 | . . . . . 1 . . . . . . . . . . . . . . . . . . . . . . . . . Operator 12 | . 1 . 1 . . 2 . . . . . . . . . . 6 . . . . . . . . 2 . . . . Drone 10 | . . . . . . . . . . . . . 1 . . . . . . . . . . . . 9 . . . . Watcher 15 | . 3 . 3 . 5 1 . . . . . . . . 1 . . . 1 . . . . . 1 . . . . . Swarmer 49 | . 12 . 6 . 7 4 . . . . 2 . 5 . . . . . 3 . . . . . 5 . 5 . . . Grunt 83 | . 6 . 10 . 14 28 . . . . 6 . . . 3 . . . 4 . . . . 2 3 7 . . . . Brawler 4 | . . . . . . 1 . . . . 1 . . . 2 . . . . . . . . . . . . . . . Duelist 2 | . . . 1 . . . . . . . 1 . . . . . . . . . . . . . . . . . . . Researcher 1 | . . . . . . . . . . . . . . . . . . . . . . . . . . 1 . . . . Sentry 43 | . . 2 8 . 4 12 4 . . . . . . . 5 . 4 1 . 1 . . . . . 2 . . . . Specialist 1 | . . . . . . . . . . . . . . . . . . 1 . . . . . . . . . . . . Hunter 21 | . . . . . 1 . . . . . . . . 4 . . . . 4 2 . . . 1 . 9 . . . . Programmer 29 | . . . . . . . . . . . . . 2 4 . . . . 2 4 1 . . . 7 9 . . . . Heavy 2 | . . . . . . . . . 1 . . . . . . . . 1 . . . . . . . . . . . . Lightning 1 | . . . . . . . . . . . . . . . . . . 1 . . . . . . . . . . . . Hotshot 3 | . . . . . . . . . . . . . . . . . . . . . . . . . . 3 . . . . Decapitator 9 | . . . . . . . . . . . . . . . . . . . . . . . . . . 9 . . . . Striker 1 | . . . . . . . . . . . . . . . . . . . . . . . . 1 . . . . . . Fortress 1 | . . . . . . . . . . . . . . . . . . . . . . . . . 1 . . . . . Scrapoid 2 | . . . . . . . . . . . 1 . . . 1 . . . . . . . . . . . . . . . Packrat 1 | . . . . . . . . . . . 1 . . . . . . . . . . . . . . . . . . . Assembled 5 | . . 5 . . . . . . . . . . . . . . . . . . . . . . . . . . . . Thug 1 | . . . . . . . . . . . . . . . 1 . . . . . . . . . . . . . . . Revision 1 | . . . . . . . . . . . . . . . . . . . . . . . . 1 . . . . . . Best Kill Streak 9 | 4 7 2 8 1 6 7 2 . 1 . 9 . 5 5 4 . 6 3 6 2 1 . . 3 7 8 5 . . . Combat Bots Only 9 | . 6 2 7 . 5 6 1 . 1 . 9 . 5 4 4 . 4 2 5 2 1 . . 3 5 8 5 . . . Max Kills in Single Turn 4 | 1 2 1 1 1 2 2 1 . 1 . 2 . 4 1 1 . 2 2 2 2 1 . . 2 2 1 1 . . . Gunslinging 1 | . 1 . . . 1 . . . . . . . . . . . . . . . . . . . . . . . . . Exploded 4 | . . 1 . . . 2 . . . . 1 . 4 . . . . . . 2 . . . . . 1 1 . . . Melee 1 | . . . . . . . . . . . . . . . . . . . . . . . . . 1 1 . . . . Uniques/NPCs Destroyed . | . . . . . . . . . . . . . . . . . . . . . . . . . . . . . . . Combat | -11 -10 -10 -9 -9 -8 -8 -8 -8 -6 -6 -6 -6 -5 -5 -5 -5 -5 -5 -4 -4 -4 -4 -3 -3 -3 -3 -2 -2 -1 -1 -------- Run | Yrd Mat Min Mat Min Mat Sto Rec Scr Fac Low Low Dat Pro Fac Ext Cet Arc Hub Fac Upp Upp Zhi Pro Res Qua Frg Res Tes Acc Com Hostile Shots Fired 1538 | . 64 27 96 . 56 143 2 . . 3 39 . 10 41 44 15 2 14 137 51 4 . . 45 125 377 52 33 17 141 Missed 469 | . 23 7 29 . 12 36 . . . 3 14 . 4 10 12 5 . 4 34 15 . . . 18 44 96 13 15 8 67 Hits 1069 | . 41 20 67 . 44 107 2 . . . 25 . 6 31 32 10 2 10 103 36 4 . . 27 81 281 39 18 9 74 Melee 28 | . . . . . . . . . . . . . . . . . . . . . . . . . . 28 . . . . Projectile 1041 | . 41 20 67 . 44 107 2 . . . 25 . 6 31 32 10 2 10 103 36 4 . . 27 81 253 39 18 9 74 AOE 10 | . . . . . . . . . . . . . . . . . . 1 . . . . . 2 . 7 . . . . Critical Strikes 58 | . . . . . . 3 . . . . 2 . . 1 2 3 . . 9 2 . . . 2 6 25 1 . . 2 Actively Blocked 4 | . . . . . . . . . . . . . . . . 3 . . . . . . . . 1 . . . . . Part Disruptions 3 | . . 1 . . . . . . . . . . . . . . . . . . . . . . 1 . 1 . . . Damage Taken 19095 | . 426 298 816 . 648 1411 26 . . 48 582 . 146 586 730 223 76 265 1432 305 40 . . 396 1424 6053 1036 403 122 1603 Core 2804 | . 37 73 113 . 83 86 . . . 34 33 . . 43 152 63 . 48 167 12 . . . 54 140 456 64 185 50 911 Absorbed by Shields 3157 | . . . . . . 202 . . . . . . . . 42 82 26 85 565 327 44 . . 367 531 279 470 . . 137 Reduced by Siege Mode 326 | . . . . . . . . . . . . . . 21 . . . . 38 . . . . . 2 265 . . . . Ignored by Resistances 1784 | . . . . . . . . . . . . . . . . . . . . . . . . . 198 1586 . . . . Regen/Repaired (Parts) 1848 | . . . . . . 317 . 169 2 . 20 . . . 119 . . . . 20 . . . . 35 1166 . . . . Core Remaining (%) 70 | 100 . 56 . 71 . . . 69 . . . . 92 . . . . 69 . . . . 84 . . 45 . 82 . 35 Volleys Fired 1011 | 12 61 20 91 . 75 130 7 5 3 2 43 . 9 54 36 3 20 17 48 27 9 25 . 46 44 169 40 10 4 1 Largest 3 | 2 2 2 2 . 3 3 3 3 2 3 3 . 3 3 3 1 3 3 3 3 3 1 . 3 3 3 1 1 1 1 Hottest 268 | 70 70 50 50 . 75 75 75 50 170 195 195 . 147 137 98 240 96 154 105 105 103 94 . 156 103 268 120 120 120 120 Shots Fired 2043 | 24 120 35 181 . 221 384 21 7 4 5 73 . 21 83 107 3 59 51 122 59 28 24 1 80 98 178 40 9 4 1 Gun 1671 | 24 120 22 180 . 219 381 21 2 1 3 34 . 17 44 107 1 59 50 114 49 28 23 1 50 79 8 34 . . . Cannon 318 | . . 8 . . . . . . 3 2 35 . 1 39 . . . 1 8 7 . . . 30 19 150 1 9 4 1 Launcher 46 | . . 5 1 . 2 3 . . . . 4 . 3 . . . . . . 3 . . . . . 20 5 . . . Special 8 | . . . . . . . . 5 . . . . . . . 2 . . . . . 1 . . . . . . . . Kinetic 1603 | 12 61 30 180 . 219 381 21 2 . 1 19 . 17 44 107 . 59 50 114 49 28 . 1 50 90 34 34 . . . Thermal 332 | 12 59 . . . . . . . 4 4 50 . 1 39 . 1 . 1 8 7 . 23 . 30 6 72 1 9 4 1 Explosive 18 | . . 5 1 . 2 3 . . . . 4 . 3 . . . . . . . . . . . . . . . . . Electromagnetic 82 | . . . . . . . . . . . . . . . . . . . . 3 . . . . 2 72 5 . . . Robot Hit Streak 27 | 6 7 6 10 . 17 27 15 16 8 7 8 . 9 17 13 2 5 9 18 10 9 19 . 10 7 16 6 . . . Robot Miss Streak 7 | 5 2 2 4 . 7 3 . 2 . 1 2 . 4 1 3 . 2 5 7 2 4 2 . 5 2 6 2 . . . Penetration Max 1 | . . . . . . . . . . . 1 . . 1 1 . 1 1 1 . . . . 1 1 . . . . . Secondary Targets 29 | . 2 . 3 . 4 4 . . . . . . 1 5 2 . . 1 1 . . . . 2 4 . . . . . Max Gunslinging Chain 1 | . 1 . 1 . 1 1 . . . . . . 1 1 1 . . 1 1 . . . . 1 1 . . . . . Shots Hit Robots 1238 | 12 72 21 112 . 138 268 15 5 2 4 37 . 11 38 75 2 33 31 70 33 16 21 . 34 68 117 3 . . . Core Hits 585 | 5 36 13 51 . 67 100 8 . . 2 32 . 8 21 34 . 19 14 36 13 3 6 . 13 35 62 7 . . . Critical Kills 27 | . . . . . 1 . 1 . . . . . . 3 6 . 3 2 3 . 1 . . 3 3 1 . . . . Critical Parts Destroyed 33 | . . 1 . . . 6 . . . . . . . . 2 . 2 3 10 5 . . . 1 3 . . . . . Critical Strikes 76 | . 6 2 . . 1 6 1 . . . . . . 3 9 . 6 6 13 5 1 . . 4 6 7 . . . . Burn 6 | . 6 . . . . . . . . . . . . . . . . . . . . . . . . . . . . . Meltdown 1 | . . . . . . . . . . . . . . . . . . . . . . . . . . 1 . . . . Destroy 62 | . . 1 . . 1 6 1 . . . . . . 3 9 . 6 6 13 5 1 . . 4 6 . . . . . Blast 2 | . . 1 . . . . . . . . . . . . . . . . . . . . . . . 1 . . . . Corrupt 1 | . . . . . . . . . . . . . . . . . . . . . . . . . . 1 . . . . Sever 4 | . . . . . . . . . . . . . . . . . . . . . . . . . . 4 . . . . Melee Attacks 65 | . . . . . . . . . . . . . . . . . . . . . . . . . 16 49 . . . . Kinetic 5 | . . . . . . . . . . . . . . . . . . . . . . . . . 5 . . . . . Impact . | . . . . . . . . . . . . . . . . . . . . . . . . . . . . . . . Slashing 60 | . . . . . . . . . . . . . . . . . . . . . . . . . 11 49 . . . . Piercing . | . . . . . . . . . . . . . . . . . . . . . . . . . . . . . . . Sneak Attacks 6 | . . . . . . . . . . . . . . . . . . . . . . . . . 1 5 . . . . Combat Hostiles 1 | . . . . . . . . . . . . . . . . . . . . . . . . . 1 . . . . . Follow-up Attacks . | . . . . . . . . . . . . . . . . . . . . . . . . . . . . . . . Damage Inflicted 36599 | 145 1029 420 2012 52 2565 5286 405 . 66 132 1595 . 723 1202 2428 . 1226 1064 2041 1212 480 544 . 1033 2783 7648 508 . . . Guns 24070 | 145 1008 134 1926 . 2412 4630 303 . 35 68 575 . 236 1098 2417 . 1226 1020 2041 1076 480 544 . 920 1749 . 27 . . . Cannons 5008 | . . 79 . . . . . . 31 64 433 . . 95 . . . 38 . . . . . 113 482 3673 . . . . Explosions 4005 | . . 184 . . 32 591 . . . . 587 . 487 . . . . . . 136 . . . . 33 1477 478 . . . Melee 3017 | . . . . . . . . . . . . . . . . . . . . . . . . . 519 2498 . . . . Ramming 499 | . 21 23 86 52 121 65 102 . . . . . . 9 11 . . 6 . . . . . . . . 3 . . . Kinetic 24133 | 70 476 213 1926 . 2412 4630 303 . . 12 257 . 236 1098 2417 . 1226 1020 2041 1076 480 . . 920 2375 918 27 . . . Thermal 3734 | 75 532 . . . . . . . 66 120 751 . . 95 . . . 38 . . . 544 . 113 73 1327 . . . . Explosive 1881 | . . 184 . . 32 591 . . . . 587 . 487 . . . . . . . . . . . . . . . . . Electromagnetic 3519 | . . . . . . . . . . . . . . . . . . . . 136 . . . . . 2905 478 . . . Impact . | . . . . . . . . . . . . . . . . . . . . . . . . . . . . . . . Slashing 2833 | . . . . . . . . . . . . . . . . . . . . . . . . . 335 2498 . . . . Piercing . | . . . . . . . . . . . . . . . . . . . . . . . . . . . . . . . Highest Corruption 42 | . . . . . . . . . . . . . 1 6 6 6 6 4 1 4 5 5 11 . 15 42 13 14 . 4 Average Corruption 8 | . . . . . . . . . . . . . 1 2 6 6 5 4 1 2 4 5 5 . 12 24 8 13 . 2 Corruption Purged 6 | . . . . . . . . . . . . . . . . . 6 . . . . . . . . . . . . . Corruption Blocked . | . . . . . . . . . . . . . . . . . . . . . . . . . . . . . . . Effects 336 | . . . . . . . . . . . . . 3 15 51 22 13 . 5 22 14 12 26 . 27 110 1 15 . . Message Errors 87 | . . . . . . . . . . . . . 2 3 13 3 4 . 4 7 1 2 9 . 5 30 . 4 . . Matter Fused 65 | . . . . . . . . . . . . . . 5 11 6 1 . . 2 4 2 8 . 8 14 . 4 . . Heat Flow Errors 41 | . . . . . . . . . . . . . . 1 7 6 3 . . 2 2 4 6 . 1 9 . . . . Energy Discharges 36 | . . . . . . . . . . . . . . 1 8 3 1 . . 5 1 . . . 2 14 . 1 . . Parts Rejected 2 | . . . . . . . . . . . . . . . . . 1 . . . . . . . . 1 . . . . Parts Fused 4 | . . . . . . . . . . . . . . . . . . . . 1 . 1 . . . 1 . 1 . . Data Loss (minor) 38 | . . . . . . . . . . . . . 1 2 4 3 . . . 2 2 1 1 . 2 17 1 2 . . Data Loss (major) 18 | . . . . . . . . . . . . . . 2 2 . . . . . 1 1 1 . 3 7 . 1 . . Misfires 16 | . . . . . . . . . . . . . . . 3 . 1 . . 1 2 . 1 . 2 6 . . . . Alerts 9 | . . . . . . . . . . . . . . . 1 1 . . 1 1 . . . . 2 2 . 1 . . Misdirections 2 | . . . . . . . . . . . . . . . . . . . . . . . . . . 2 . . . . Weapon Failures 18 | . . . . . . . . . . . . . . 1 2 . 2 . . 1 1 1 . . 2 7 . 1 . . Overload Shots 1 | . . . . . . . . . . . . . . . . 1 . . . . . . . . . . . . . . Overflow Damage 728 | . . 19 . 4 1 13 . . . . . . 79 1 . . . . . . . . . . 18 545 48 . . . Projectiles 53 | . . . . . . . . . . . . . . 1 . . . . . . . . . . 16 36 . . . . Explosions 219 | . . 19 . . . 9 . . . . . . 79 . . . . . . . . . . . . 64 48 . . . Melee 456 | . . . . 4 1 4 . . . . . . . . . . . . . . . . . . 2 445 . . . . Knockbacks 17 | . . 1 . 2 2 2 1 . . . . . . . . . . . . . . . . . 1 8 . . . . Impact 7 | . . . . 2 2 2 1 . . . . . . . . . . . . . . . . . . . . . . . Kinetic 9 | . . 1 . . . . . . . . . . . . . . . . . . . . . . 1 7 . . . . Secondary 1 | . . . . . . . . . . . . . . . . . . . . . . . . . . 1 . . . . Self-Inflicted Damage 322 | . . 24 13 . . . . . . . . . 32 . 5 . . . . 25 . . . . . 197 26 . . . Shots 18 | . . 1 1 . . . . . . . . . 1 . . . . . . 2 . . . . . 11 2 . . . Rammed 50 | . 8 5 9 4 10 6 4 . . . . . . 1 1 . . 1 . . . . . . . . 1 . . . Targets Rammed 58 | . 8 5 11 4 12 7 7 . . . . . . 1 1 . . 1 . . . . . . . . 1 . . . Kicked . | . . . . . . . . . . . . . . . . . . . . . . . . . . . . . . . Crushed 8 | . . . 2 . 2 1 3 . . . . . . . . . . . . . . . . . . . . . . . Highest Temperature 369 | 72 117 20 328 . 160 198 7 . 111 156 364 . 181 300 245 265 369 336 306 217 268 350 276 319 231 195 24 72 22 40 Average Temperature 69 | 31 29 13 27 . 43 48 4 . 56 71 117 . 79 76 65 117 173 112 82 72 114 142 104 61 37 50 16 30 15 23 Received Heat Transfer 2813 | . 108 158 282 . 252 695 9 . . 12 178 . . . 156 6 6 45 139 16 . . . 47 93 548 . 18 . 45 Effects 6 | . . . . . . . . . . . 1 . . . . . 3 . . 1 . . . 1 . . . . . . Shutdowns 2 | . . . . . . . . . . . . . . . . . 2 . . . . . . . . . . . . . Energy Bleed 2 | . . . . . . . . . . . . . . . . . 1 . . 1 . . . . . . . . . . Interference 2 | . . . . . . . . . . . 1 . . . . . . . . . . . . 1 . . . . . . Siege Activations 21 | . . . . . . . . . . . . . . 3 . . . . 4 1 . . . . 1 12 . . . . Total Turns 322 | . . . . . . . . . . . . . . 36 . . . . 108 2 . . . . 5 171 . . . . Longest Duration 48 | . . . . . . . . . . . . . . 17 . . . . 48 2 . . . . 5 35 . . . . Martial Activations . | . . . . . . . . . . . . . . . . . . . . . . . . . . . . . . . Shielding Activations . | . . . . . . . . . . . . . . . . . . . . . . . . . . . . . . . Robots Disrupted . | . . . . . . . . . . . . . . . . . . . . . . . . . . . . . . . Combat Hostiles . | . . . . . . . . . . . . . . . . . . . . . . . . . . . . . . . Robots Corrupted 19 | . . . . 1 . . . . . . . . . . . . . . . . . . . . . 16 2 . . . Combat Hostiles 16 | . . . . . . . . . . . . . . . . . . . . . . . . . . 14 2 . . . Parts Fried 37 | . . . . 2 . . . . . . . . . . . . . . . 2 . . . . . 28 5 . . . Impact Corruptions 3 | . . . . 1 1 1 . . . . . . . . . . . . . . . . . . . . . . . . Robots Melted 2 | . . . . . . . . . 1 . . . . . . . . . . . . . . . . 1 . . . . Combat Hostiles 1 | . . . . . . . . . 1 . . . . . . . . . . . . . . . . . . . . . Parts Melted 7 | . 4 . . . . . . . . . 3 . . . . . . . . . . . . . . . . . . . Heat Transferred 5603 | 222 1998 . . . . . . . 125 225 1206 . . 150 . . . . . . . 740 . . 50 887 . . . . Parts Sabotaged . | . . . . . . . . . . . . . . . . . . . . . . . . . . . . . . . Parts Stolen . | . . . . . . . . . . . . . . . . . . . . . . . . . . . . . . . Parts Stripped 18 | . . . . . . . . . . . . . . . . . . . . . . . . . 18 . . . . . Power Chain Reactions 1 | . . . . . . . . . . . . . . . . . . . . . . . . . 1 . . . . . Alert | -11 -10 -10 -9 -9 -8 -8 -8 -8 -6 -6 -6 -6 -5 -5 -5 -5 -5 -5 -4 -4 -4 -4 -3 -3 -3 -3 -2 -2 -1 -1 ------- Run | Yrd Mat Min Mat Min Mat Sto Rec Scr Fac Low Low Dat Pro Fac Ext Cet Arc Hub Fac Upp Upp Zhi Pro Res Qua Frg Res Tes Acc Com Maximum Alert Level 3 | . . . 1 . 1 3 2 . . . . . . 2 2 1 1 1 1 . . . . . . 3 2 . . . Low Security (%) 62 | 100 100 100 51 100 98 12 31 . 100 . . . . 36 7 . 40 60 51 . . . . 100 100 54 . 100 100 100 Level 1 26 | . . . 48 . 1 11 62 . . . . . . 62 72 99 59 39 48 . . . . . . 20 71 . . . Level 2 9 | . . . . . . 63 6 . . . . . . . 19 . . . . . . . . . . 17 28 . . . Level 3 1 | . . . . . . 11 . . . . . . . . . . . . . . . . . . . 7 . . . . Level 4 . | . . . . . . . . . . . . . . . . . . . . . . . . . . . . . . . Level 5 . | . . . . . . . . . . . . . . . . . . . . . . . . . . . . . . . High Security . | . . . . . . . . . . . . . . . . . . . . . . . . . . . . . . . Max Security . | . . . . . . . . . . . . . . . . . . . . . . . . . . . . . . . Peak Influence 778 | 10 186 31 293 84 232 778 427 . 100 . . . . 405 592 393 291 358 300 . . . . 70 195 739 442 180 129 119 Initial 379 | . . 7 5 84 . 96 297 . . . . . . 300 187 303 80 39 112 . . . . . 14 . 379 180 53 71 Average 175 | 1 77 1 146 7 70 497 247 . 27 . . . . 218 337 293 205 126 164 . . . . 10 86 266 379 123 67 62 Influence Increases 12623 | 20 542 85 810 5 831 1343 313 . 202 262 674 . 194 799 1371 379 313 844 519 215 35 15 . 219 510 1416 131 90 169 317 Destroy 0b10 Robot/C 6460 | . 360 40 500 . 520 900 80 . 80 140 480 . 140 240 620 160 80 240 280 140 20 . . 80 320 800 100 . . 140 Destroy 0b10 Robot/NC 560 | 20 45 . 70 5 80 55 20 . . . 5 . 10 20 15 10 30 25 30 . 5 15 . 10 15 65 . . . 10 Destroy Leader 1122 | . 70 . 146 . 132 190 . . 30 20 40 . 20 50 64 . . 74 54 30 10 . . 10 32 110 10 . . 30 Allied During Kill 1567 | . . . . . . . . . 47 102 149 . 24 45 555 170 110 323 12 . . . . . . . . . . 30 Successful Hack 366 | . 21 . 30 . 40 22 3 . 24 . . . . . 5 . . 27 . . . . . 43 . 28 . 30 85 8 Select Force Hacks 260 | . . . . . . . 210 . . . . . . . . . . 50 . . . . . . . . . . . . Disable Machine 540 | . . . 15 . 15 45 . . 15 . . . . 60 15 15 45 45 30 . . . . 15 105 75 . 30 15 . Anti-Garrison Action 150 | . . . . . . . . . . . . . . . . . . . . . . . . . . 150 . . . . Destroy Structure 743 | . 1 45 19 . 29 26 . . 6 . . . . 84 82 24 48 60 98 . . . . 46 38 68 21 15 9 24 Advance Influence 300 | . . . . . . . . . . . . . . 300 . . . . . . . . . . . . . . . . Partial Spotted 90 | . 15 . . . 15 . . . . . . . . . 15 . . . . . . . . 15 . . . 15 . 15 Lose Combat Pursuer 465 | . 30 . 30 . . 105 . . . . . . . . . . . . 15 45 . . . . . 120 . . 60 60 Influence Decreases 12593 | 20 522 89 608 223 601 810 988 88 168 270 528 172 194 416 1212 721 398 730 538 409 51 15 . 193 536 741 486 320 147 399 Entered New Map 2394 | . . 13 11 134 . 134 466 88 . 14 6 172 . . 196 239 120 76 117 78 4 . . . 12 . 296 140 37 41 Time Decay 8224 | 20 512 49 577 89 601 646 522 . 167 256 482 . 194 416 556 342 278 179 381 331 47 15 . 179 354 561 140 160 110 60 Lost Part 426 | . 10 27 20 . . 20 . . . . . . . . 20 . . 10 10 . . . . . 20 120 50 10 . 109 Lost Ally 942 | . . . . . . 10 . . 1 . 40 . . . 140 140 . 382 30 . . . . . . . . 10 . 189 Purge Threat 607 | . . . . . . . . . . . . . . . 300 . . 83 . . . . . 14 150 60 . . . . Squads Dispatched 63 | . 2 . 1 . 5 7 . . 3 . 1 . . 6 2 . . 4 4 . . . . 5 3 10 2 2 3 3 Investigation 14 | . . . . . 2 . . . 1 . . . . 3 2 . . 1 . . . . . 2 . 1 . . 1 1 Extermination 15 | . . . . . . . . . . . . . . 2 . . . . 3 . . . . . 2 4 . 1 2 1 Reinforcement 24 | . 2 . 1 . 3 3 . . 2 . . . . 1 . . . 2 1 . . . . 3 1 1 2 1 . 1 Assault 6 | . . . . . . 1 . . . . 1 . . . . . . . . . . . . . . 4 . . . . Garrison 4 | . . . . . . 3 . . . . . . . . . . . 1 . . . . . . . . . . . . Intercept . | . . . . . . . . . . . . . . . . . . . . . . . . . . . . . . . Searches Triggered . | . . . . . . . . . . . . . . . . . . . . . . . . . . . . . . . Data Miner Redirects 5 | . . . . . . . . . . . . . . . . . . . . . . . . . . 4 . . . 1 Construction Impeded 4 | . . . . . 2 1 . . . . . . . . . . . . . . . . . . . 1 . . . . Haulers Reinforced 2 | . . . . . . . . . . . . . . . . . . . 1 . . . . 1 . . . . . . Active Scanning Responses . | . . . . . . . . . . . . . . . . . . . . . . . . . . . . . . . Cargo Convoy Interrupts 1 | . . . . . . . . . . . . . . 1 . . . . . . . . . . . . . . . . Stealth | -11 -10 -10 -9 -9 -8 -8 -8 -8 -6 -6 -6 -6 -5 -5 -5 -5 -5 -5 -4 -4 -4 -4 -3 -3 -3 -3 -2 -2 -1 -1 --------- Run | Yrd Mat Min Mat Min Mat Sto Rec Scr Fac Low Low Dat Pro Fac Ext Cet Arc Hub Fac Upp Upp Zhi Pro Res Qua Frg Res Tes Acc Com Distress Signals 22 | . 3 . 3 . 2 1 . . . . . . . . . 2 . 2 1 . . . . 5 1 . . . . 2 Communications Jammed 177 | . . . . . . . . . . . . . 2 1 . . . 112 52 . . . . . . 5 5 . . . Distress Signals 173 | . . . . . . . . . . . . . . 1 . . . 112 52 . . . . . . 3 5 . . . Times Spotted 467 | . 26 9 36 . 35 60 1 . 4 6 24 . 10 12 27 10 18 23 17 11 1 . . 11 18 55 9 16 7 21 Peak Tracking Total 13 | . 4 2 6 . 5 6 1 . 2 3 12 . 5 4 4 5 1 10 5 2 1 . . 4 5 5 5 12 4 13 Tactical Retreats 26 | . 2 1 2 . . 5 . . . . . . . . . . . . 1 3 . . . . . 8 . . 2 2 Traps | -11 -10 -10 -9 -9 -8 -8 -8 -8 -6 -6 -6 -6 -5 -5 -5 -5 -5 -5 -4 -4 -4 -4 -3 -3 -3 -3 -2 -2 -1 -1 ------- Run | Yrd Mat Min Mat Min Mat Sto Rec Scr Fac Low Low Dat Pro Fac Ext Cet Arc Hub Fac Upp Upp Zhi Pro Res Qua Frg Res Tes Acc Com Traps Triggered 22 | . 1 . . . . 5 . . . . . . . 1 3 . . . 1 . . . . . 2 3 . 1 . 5 Indirectly 1 | . . . . . . . . . . . . . . . . . . . . . . . . . . 1 . . . . Trap Hack Attempts . | . . . . . . . . . . . . . . . . . . . . . . . . . . . . . . . Triggered . | . . . . . . . . . . . . . . . . . . . . . . . . . . . . . . . Disarmed . | . . . . . . . . . . . . . . . . . . . . . . . . . . . . . . . Reprogrammed . | . . . . . . . . . . . . . . . . . . . . . . . . . . . . . . . Reused . | . . . . . . . . . . . . . . . . . . . . . . . . . . . . . . . Traps Extracted . | . . . . . . . . . . . . . . . . . . . . . . . . . . . . . . . Installed . | . . . . . . . . . . . . . . . . . . . . . . . . . . . . . . . Triggered . | . . . . . . . . . . . . . . . . . . . . . . . . . . . . . . . Machines | -11 -10 -10 -9 -9 -8 -8 -8 -8 -6 -6 -6 -6 -5 -5 -5 -5 -5 -5 -4 -4 -4 -4 -3 -3 -3 -3 -2 -2 -1 -1 ---------- Run | Yrd Mat Min Mat Min Mat Sto Rec Scr Fac Low Low Dat Pro Fac Ext Cet Arc Hub Fac Upp Upp Zhi Pro Res Qua Frg Res Tes Acc Com Machines Disabled 45 | . . 1 2 . 1 3 . . 1 . . . . 4 1 2 3 3 2 . . 1 . 2 7 9 . 2 1 . Max in Single Turn 1 | . . . 1 . 1 1 . . . . . . . 1 . 1 1 . 1 . . 1 . 1 1 1 . 1 1 . Garrison Access 3 | . . . . . . 1 . . . . . . . . . . . . . . . . . 1 . 1 . . . . Network Hub 1 | . . . . . . . . . . . . . . . . . . 1 . . . . . . . . . . . . Machines Repaired . | . . . . . . . . . . . . . . . . . . . . . . . . . . . . . . . Machines Dismantled . | . . . . . . . . . . . . . . . . . . . . . . . . . . . . . . . Machines Sabotaged 1 | . . . . . . . . . . . . . . . . . . 1 . . . . . . . . . . . . Overloaded Fab Kills . | . . . . . . . . . . . . . . . . . . . . . . . . . . . . . . . Hacking | -11 -10 -10 -9 -9 -8 -8 -8 -8 -6 -6 -6 -6 -5 -5 -5 -5 -5 -5 -4 -4 -4 -4 -3 -3 -3 -3 -2 -2 -1 -1 --------- Run | Yrd Mat Min Mat Min Mat Sto Rec Scr Fac Low Low Dat Pro Fac Ext Cet Arc Hub Fac Upp Upp Zhi Pro Res Qua Frg Res Tes Acc Com Machines Accessed 106 | . 7 1 8 . 11 9 13 5 4 . 1 3 . 4 5 . . 4 . 1 . 4 . 7 2 5 1 2 5 4 Terminals 61 | . 5 . 6 . 8 6 6 . 2 . . . . 1 3 . . 4 . . . . . 4 2 4 . 2 4 4 Fabricators . | . . . . . . . . . . . . . . . . . . . . . . . . . . . . . . . Repair Stations 2 | . . . . . 1 1 . . . . . . . . . . . . . . . . . . . . . . . . Recycling Units 18 | . 2 . 1 . 1 1 7 . 1 . . . . 1 2 . . . . . . . . 1 . . 1 . . . Scanalyzers 3 | . . . 1 . 1 . . . 1 . . . . . . . . . . . . . . . . . . . . . Garrison Access 7 | . . . . . . 1 . . . . . . . 2 . . . . . . . . . 2 . 1 . . 1 . Total Hacks 309 | . 23 1 23 . 26 34 24 32 9 . 1 18 . 6 11 . . 7 . 1 . 17 . 31 4 9 1 6 18 7 Successful 187 | . 10 1 12 . 9 18 18 32 7 . 1 18 . 1 6 . . 5 . 1 . 17 . 14 1 4 1 3 6 2 Failed 119 | . 13 . 10 . 16 16 6 . 1 . . . . 5 5 . . 2 . . . . . 17 3 5 . 3 12 5 Catastrophic 25 | . . . 2 . 2 3 . . . . . . . 2 . . . 1 . . . . . 3 2 3 . 2 3 2 Database Lockouts 3 | . . . 1 . 1 . . . 1 . . . . . . . . . . . . . . . . . . . . . Manual 121 | . 18 . 14 . 11 14 21 . 2 . . . . 1 11 1 . 4 . . . . . 11 . 2 . 5 5 1 Terminals 175 | . 18 . 20 . 17 21 16 . 4 . . . . 1 8 . . 7 . . . . . 27 4 7 . 6 12 7 Fabricators . | . . . . . . . . . . . . . . . . . . . . . . . . . . . . . . . Repair Stations 12 | . . . . . 4 8 . . . . . . . . . . . . . . . . . . . . . . . . Recycling Units 26 | . 5 . 1 . 2 2 8 . 1 . . . . 1 3 . . . . . . . . 2 . . 1 . . . Scanalyzers 9 | . . . 2 . 3 . . . 4 . . . . . . . . . . . . . . . . . . . . . Garrison Access 17 | . . . . . . 3 . . . . . . . 4 . . . . . . . . . 2 . 2 . . 6 . Terminal Hacks 112 | . 1 1 4 . 1 5 2 32 2 . 1 18 . . 3 . . 3 . 1 . 17 . 9 1 4 . 1 4 2 Record 38 | . . . . . . . . 22 . . . 11 . . . . . . . . . 5 . . . . . . . . Part Schematic 4 | . . . . . . . . . . . . . . . . . . . . . . 4 . . . . . . . . Robot Schematic 7 | . . . . . . . . . . . . 7 . . . . . . . . . . . . . . . . . . Robot Analysis 19 | . 1 . 1 . . 1 1 9 1 . . . . . . . . . . . . 4 . 1 . . . . . . Prototype ID Bank 6 | . . . . . . 1 . . . . . . . . . . . . . . . 4 . 1 . . . . . . Open Door 4 | . . 1 . . . 1 . . . . 1 . . . . . . . . 1 . . . . . . . . . . Level Access Points 3 | . . . . . . . . . . . . . . . . . . 1 . . . . . . . 1 . 1 . . Branch Access Points 4 | . . . 1 . . . . . . . . . . . . . . 1 . . . . . 1 . . . . 1 . Emergency Access Points 2 | . . . . . . . . . . . . . . . . . . . . . . . . . . . . . 1 1 Terminal Index 3 | . . . . . . . . . . . . . . . . . . . . . . . . 1 . 1 . . 1 . Alert Level 4 | . . . . . . 1 1 . . . . . . . 1 . . . . . . . . 1 . . . . . . Unreport Threat 7 | . . . . . . . . . . . . . . . 2 . . 1 . . . . . 2 1 1 . . . . Locate Traps 1 | . . . . . 1 . . . . . . . . . . . . . . . . . . . . . . . . . Hauler Manifests 4 | . . . 1 . . 1 . . 1 . . . . . . . . . . . . . . 1 . . . . . . Registered Components 2 | . . . 1 . . . . . . . . . . . . . . . . . . . . 1 . . . . . . Zone Layout 1 | . . . . . . . . . . . . . . . . . . . . . . . . . . . . . 1 . Proto ID Catalog 2 | . . . . . . . . 1 . . . . . . . . . . . . . . . . . 1 . . . . Disengage Seal 1 | . . . . . . . . . . . . . . . . . . . . . . . . . . . . . . 1 Fabricator Hacks . | . . . . . . . . . . . . . . . . . . . . . . . . . . . . . . . Repair Station Hacks 8 | . . . . . 2 6 . . . . . . . . . . . . . . . . . . . . . . . . Scan Component 5 | . . . . . 2 3 . . . . . . . . . . . . . . . . . . . . . . . . Repair 3 | . . . . . . 3 . . . . . . . . . . . . . . . . . . . . . . . . Recycling Unit Hacks 6 | . 2 . 1 . . . 1 . . . . . . . . . . . . . . . . 1 . . 1 . . . Retrieve Components 6 | . 2 . 1 . . . 1 . . . . . . . . . . . . . . . . 1 . . 1 . . . Scanalyzer 5 | . . . . . 2 . . . 3 . . . . . . . . . . . . . . . . . . . . . Retrieve Study 5 | . . . . . 2 . . . 3 . . . . . . . . . . . . . . . . . . . . . Garrison Access Hacks 2 | . . . . . . 1 . . . . . . . . . . . . . . . . . 1 . . . . . . Seal Access 2 | . . . . . . 1 . . . . . . . . . . . . . . . . . 1 . . . . . . Unauthorized Hacks 54 | . 7 . 7 . 4 6 15 . 2 . . . . 1 3 . . 2 . . . . . 3 . . . 2 2 . Terminals 43 | . 7 . 7 . 4 6 8 . 1 . . . . . 1 . . 2 . . . . . 3 . . . 2 2 . Assimilate 3 | . . . . . . . . . . . . . . . . . . . . . . . . 1 . . . 2 . . Botnet 12 | . 2 . 1 . . 1 2 . 1 . . . . . 1 . . 1 . . . . . 1 . . . . 2 . Skim 27 | . 5 . 6 . 4 5 6 . . . . . . . . . . . . . . . . 1 . . . . . . Sabotage 1 | . . . . . . . . . . . . . . . . . . 1 . . . . . . . . . . . . Fabricators . | . . . . . . . . . . . . . . . . . . . . . . . . . . . . . . . Repair Stations . | . . . . . . . . . . . . . . . . . . . . . . . . . . . . . . . Recycling Units 11 | . . . . . . . 7 . 1 . . . . 1 2 . . . . . . . . . . . . . . . Tunnel 7 | . . . . . . . 7 . . . . . . . . . . . . . . . . . . . . . . . Scrapoids 4 | . . . . . . . . . 1 . . . . 1 2 . . . . . . . . . . . . . . . Scanalyzers . | . . . . . . . . . . . . . . . . . . . . . . . . . . . . . . . Garrison Access . | . . . . . . . . . . . . . . . . . . . . . . . . . . . . . . . Data Cores Recovered 2 | . . . . . . 1 . . . . . . . . . . . . . . . . . . . 1 . . . . Used . | . . . . . . . . . . . . . . . . . . . . . . . . . . . . . . . Hacking Detections 63 | . 7 . 6 . 8 8 5 . 2 . . . . 3 2 . . 2 . . . . . 6 2 4 . 1 4 3 Full Trace Events 4 | . . . . . 2 . . . . . . . . 1 . . . . . . . . . . . . . . 1 . Feedback Events . | . . . . . . . . . . . . . . . . . . . . . . . . . . . . . . . Feedback Blocked . | . . . . . . . . . . . . . . . . . . . . . . . . . . . . . . . Robot Schematics Acquired 7 | . . . . . . . . . . . . 7 . . . . . . . . . . . . . . . . . . Robots Built . | . . . . . . . . . . . . . . . . . . . . . . . . . . . . . . . Authchips . | . . . . . . . . . . . . . . . . . . . . . . . . . . . . . . . Time . | . . . . . . . . . . . . . . . . . . . . . . . . . . . . . . . Total Robot Build Rating . | . . . . . . . . . . . . . . . . . . . . . . . . . . . . . . . Part Schematics Acquired 4 | . . . . . . . . . . . . . . . . . . . . . . 4 . . . . . . . . Parts Built . | . . . . . . . . . . . . . . . . . . . . . . . . . . . . . . . Authchips . | . . . . . . . . . . . . . . . . . . . . . . . . . . . . . . . Time . | . . . . . . . . . . . . . . . . . . . . . . . . . . . . . . . Total Part Build Rating . | . . . . . . . . . . . . . . . . . . . . . . . . . . . . . . . Part Studies Acquired 5 | . . . . . 2 . . . 3 . . . . . . . . . . . . . . . . . . . . . Parts Repaired 3 | . . . . . . 3 . . . . . . . . . . . . . . . . . . . . . . . . Time 114 | . . . . . . 114 . . . . . . . . . . . . . . . . . . . . . . . . Parts Recycled . | . . . . . . . . . . . . . . . . . . . . . . . . . . . . . . . Recycled Matter . | . . . . . . . . . . . . . . . . . . . . . . . . . . . . . . . Retrieved Matter . | . . . . . . . . . . . . . . . . . . . . . . . . . . . . . . . Retrieved Components 37 | . 7 . 10 . . . 8 . . . . . . . . . . . . . . . . 10 . . 2 . . . Parts Scanalyzed . | . . . . . . . . . . . . . . . . . . . . . . . . . . . . . . . Part Schematics Acquired . | . . . . . . . . . . . . . . . . . . . . . . . . . . . . . . . Parts Damaged . | . . . . . . . . . . . . . . . . . . . . . . . . . . . . . . . Bothacking | -11 -10 -10 -9 -9 -8 -8 -8 -8 -6 -6 -6 -6 -5 -5 -5 -5 -5 -5 -4 -4 -4 -4 -3 -3 -3 -3 -2 -2 -1 -1 ------------ Run | Yrd Mat Min Mat Min Mat Sto Rec Scr Fac Low Low Dat Pro Fac Ext Cet Arc Hub Fac Upp Upp Zhi Pro Res Qua Frg Res Tes Acc Com Used RIF Installer . | . . . . . . . . . . . . . . . . . . . . . . . . . . . . . . . Robots Hacked . | . . . . . . . . . . . . . . . . . . . . . . . . . . . . . . . Non-combat . | . . . . . . . . . . . . . . . . . . . . . . . . . . . . . . . Combat . | . . . . . . . . . . . . . . . . . . . . . . . . . . . . . . . Robot Hacks Applied . | . . . . . . . . . . . . . . . . . . . . . . . . . . . . . . . Relay Couplers Released 4 | . . . . . . . . . . . . . . 2 . . . . . . . . . . . 2 . . . . Machine Destruction 4 | . . . . . . . . . . . . . . 2 . . . . . . . . . . . 2 . . . . Fabnet Peak Effective % . | . . . . . . . . . . . . . . . . . . . . . . . . . . . . . . . Robots Rewired 16 | . . . . . . . . . . . 2 . . . 14 . . . . . . . . . . . . . . . Allies Hacked . | . . . . . . . . . . . . . . . . . . . . . . . . . . . . . . . Hacks Repelled . | . . . . . . . . . . . . . . . . . . . . . . . . . . . . . . . Allies | -11 -10 -10 -9 -9 -8 -8 -8 -8 -6 -6 -6 -6 -5 -5 -5 -5 -5 -5 -4 -4 -4 -4 -3 -3 -3 -3 -2 -2 -1 -1 -------- Run | Yrd Mat Min Mat Min Mat Sto Rec Scr Fac Low Low Dat Pro Fac Ext Cet Arc Hub Fac Upp Upp Zhi Pro Res Qua Frg Res Tes Acc Com Total Allies 75 | . . 3 . . . . . 5 5 . 2 . . 5 29 5 . . . . . . . 1 . . . 2 . 18 Largest Group 28 | . . 2 . . . . . 5 9 9 6 3 3 5 28 27 21 20 1 . . . . 1 . . . 2 . 12 Highest-Rated Group 1413 | . . 47 . . . . . 244 334 334 244 97 97 235 1154 1413 1104 945 96 . . . . 10 . . . 36 . 540 Highest-Rated Ally 234 | . . 31 . . . . . 50 50 47 47 47 47 47 159 159 159 96 96 . . . . 10 . . . 26 . 234 Total Orders 19 | . . . . . . 1 . . . . 2 . 3 . . 1 4 2 6 . . . . . . . . . . . STAY 7 | . . . . . . . . . . . 1 . 2 . . 1 1 2 . . . . . . . . . . . . FOLLOW 3 | . . . . . . . . . . . 1 . 1 . . . 1 . . . . . . . . . . . . . EXPLORE 6 | . . . . . . 1 . . . . . . . . . . 1 . 4 . . . . . . . . . . . RETURN 3 | . . . . . . . . . . . . . . . . . 1 . 2 . . . . . . . . . . . Ally Attacks 687 | . . 7 . . . . . . 34 37 77 . 2 32 182 124 21 113 5 . . . . . . . . . . 53 Total Damage 16460 | . . 106 . . . . . . 633 701 1616 . 69 509 4187 3162 499 2947 98 . . . . . . . . . . 1933 Kills 89 | . . 1 . . . . . . 3 8 17 . 1 4 22 10 . 13 1 . . . . . . . . . . 9 Allies Corrupted 2 | . . . . . . . . . . . . . . . . . . 2 . . . . . . . . . . . . Allies Melted . | . . . . . . . . . . . . . . . . . . . . . . . . . . . . . . . Intel | -11 -10 -10 -9 -9 -8 -8 -8 -8 -6 -6 -6 -6 -5 -5 -5 -5 -5 -5 -4 -4 -4 -4 -3 -3 -3 -3 -2 -2 -1 -1 ------- Run | Yrd Mat Min Mat Min Mat Sto Rec Scr Fac Low Low Dat Pro Fac Ext Cet Arc Hub Fac Upp Upp Zhi Pro Res Qua Frg Res Tes Acc Com Active Infowar (turns) 27071 | 55 1513 1830 2207 1107 3501 737 . . 454 723 1118 131 631 1004 1626 55 267 465 1028 1517 710 504 1005 956 834 2168 278 286 221 140 Sensors 10524 | . . . . . . . . . 454 723 1118 131 631 1004 105 . . . 815 1283 710 504 1005 956 478 . . 247 220 140 Terrain 2613 | . . . . . . . . . . . . . . . . . . . . . . . . 943 806 600 264 . . . Seismic 10950 | 55 1513 1830 2207 1107 3501 737 . . . . . . . . . . . . . . . . . . . . . . . . Jamming 12566 | . . . . . . . . . . . . . 631 1004 1626 55 267 465 1028 1517 710 500 1005 837 291 2168 278 183 1 . Robot Analysis Total 19 | . 1 . 1 . . 1 1 9 1 . . . . . . . . . . . . 4 . 1 . . . . . . Derelict Logs Recovered 13 | . . 2 . 1 . . . . . 3 3 . 2 . . . . . . 1 1 . . . . . . . . . Drone Launches 13 | . . . . . . 3 . . . . . . . . . . 1 7 2 . . . . . . . . . . . Drone Recoveries 5 | . . . . . . 2 . . . . . . . . . . 1 2 . . . . . . . . . . . . Exploration | -11 -10 -10 -9 -9 -8 -8 -8 -8 -6 -6 -6 -6 -5 -5 -5 -5 -5 -5 -4 -4 -4 -4 -3 -3 -3 -3 -2 -2 -1 -1 ------------- Run | Yrd Mat Min Mat Min Mat Sto Rec Scr Fac Low Low Dat Pro Fac Ext Cet Arc Hub Fac Upp Upp Zhi Pro Res Qua Frg Res Tes Acc Com Turns Passed 39732 | 174 1513 1831 2207 1107 3501 2348 1459 8021 522 723 1241 131 631 1004 1626 768 612 465 1028 1517 710 504 1005 956 950 2168 288 336 227 159 Spaces Moved 18340 | 81 689 542 760 458 1200 613 638 3489 243 357 510 93 468 501 845 307 255 296 424 883 480 243 434 652 507 767 134 400 599 472 Core 4 | 4 . . . . . . . . . . . . . . . . . . . . . . . . . . . . . . Treads 11257 | 77 689 542 760 458 1200 613 638 3489 243 356 291 7 . 30 1 . . . 116 92 . 143 434 . 115 767 134 62 . . Legs 1156 | . . . . . . . . . . . . . . . . . . . . . . . . 652 392 . . 112 . . Wheels 4626 | . . . . . . . . . . 1 219 86 468 471 844 307 255 296 308 791 480 100 . . . . . . . . Hover . | . . . . . . . . . . . . . . . . . . . . . . . . . . . . . . . Flight 1297 | . . . . . . . . . . . . . . . . . . . . . . . . . . . . 226 599 472 Fastest Speed 21 | 50 160 320 240 240 216 216 224 224 198 198 130 130 130 130 130 130 140 140 140 140 140 130 160 118 120 160 160 25 34 21 Average Speed 180 | 154 183 320 241 240 233 222 224 224 201 198 217 141 130 136 130 138 140 140 167 150 140 171 228 118 130 160 160 69 34 28 Slowest Speed 320 | 160 320 320 320 240 285 224 224 224 224 230 285 285 130 240 240 140 140 140 240 240 140 240 240 122 240 160 160 247 34 74 Overloaded Moves 40 | . . . . . . . . . . . . . . . . . . . . . . . . . . . . 26 . 14 Propulsion Burnouts . | . . . . . . . . . . . . . . . . . . . . . . . . . . . . . . . Robots Hopped 12 | . . . . . . . . . . . . . . . . . . . . . . . . . . . . 5 4 3 Potential Cave-ins . | . . . . . . . . . . . . . . . . . . . . . . . . . . . . . . . Cave-ins Triggered . | . . . . . . . . . . . . . . . . . . . . . . . . . . . . . . . Teleports 1 | . . . . . . . . . . . . . . . . . . . . . . . . . . 1 . . . . Exploration Rate (%) 56 | 5 94 99 68 100 80 93 97 89 6 58 52 68 60 14 82 71 97 36 15 83 60 61 66 21 50 23 7 44 21 18 Regions Visited 30 Branch Regions 21 Pre-discovered Areas 21 | . 1 . 1 1 . 2 9 1 . 1 1 1 . . . . . . . . . 3 . . . . . . . . Known Exits Taken 25 | . 1 1 1 1 1 . 1 1 1 1 . . 1 1 1 1 1 1 1 1 1 1 1 1 1 1 . 1 1 . Unknown Exits Taken 5 | 1 . . . . . 1 . . . . 1 1 . . . . . . . . . . . . . . 1 . . . Scrap Searched 26 | . . 1 . 1 . . . 6 . 2 4 . 2 . . . . . . 4 3 . 3 . . . . . . . Spaces Dug 155 | . . 9 11 . 31 . . . 1 . 9 . . 27 1 . . . 8 3 . . . 15 3 24 4 5 3 1 Terrain Destroyed 524 | . . 51 11 . 31 31 . . 2 . 69 . 19 45 30 . 27 23 50 27 8 . . 30 17 36 6 7 3 1 Melee 13 | . . . . . . . . . . . . . . . . . . . . . . . . . 2 11 . . . . Projectile 317 | . . . . . . . . . 2 . 22 . 5 45 30 . 27 23 50 27 8 . . 30 10 25 2 7 3 1 AOE 188 | . . 51 11 . 31 31 . . . . 47 . 14 . . . . . . . . . . . 3 . . . . . Terrain Rammed . | . . . . . . . . . . . . . . . . . . . . . . . . . . . . . . . Walls Destroyed . | . . . . . . . . . . . . . . . . . . . . . . . . . . . . . . . Machines Disabled . | . . . . . . . . . . . . . . . . . . . . . . . . . . . . . . . Actions | -11 -10 -10 -9 -9 -8 -8 -8 -8 -6 -6 -6 -6 -5 -5 -5 -5 -5 -5 -4 -4 -4 -4 -3 -3 -3 -3 -2 -2 -1 -1 --------- Run | Yrd Mat Min Mat Min Mat Sto Rec Scr Fac Low Low Dat Pro Fac Ext Cet Arc Hub Fac Upp Upp Zhi Pro Res Qua Frg Res Tes Acc Com Total 23361 | 102 819 593 987 461 1783 1392 651 3692 276 370 584 92 481 768 1311 653 495 331 649 1021 498 307 450 764 685 1413 182 447 613 491 Wait 2896 | . 29 8 63 . 437 588 . 174 6 3 . . . 171 267 285 212 3 129 101 8 1 1 14 20 368 1 3 4 . Move 18287 | 80 688 541 759 457 1199 612 637 3488 242 356 509 92 467 500 844 306 254 296 423 882 479 242 433 651 506 766 133 390 590 465 Hop 11 | . . . . . . . . . . . . . . . . . . . . . . . . . . . . 4 4 3 Pick Up 195 | 3 22 7 17 . 14 5 . 7 9 2 3 . 1 14 2 17 2 2 9 3 1 7 3 11 16 9 2 3 4 . Fast Attach 91 | 7 . . 5 . . 4 . 6 2 1 2 . . 2 4 4 1 . 1 . . 8 3 1 12 4 3 10 3 8 Attach 73 | . 1 3 4 . 3 2 . 1 2 . . . . 2 1 2 1 . 5 1 . 4 1 8 12 12 1 4 1 2 Detach 12 | . . . . . . . . . . . . . . . . . . . . . . 1 . 1 6 . . 2 . 2 Swap 234 | . 3 8 12 . 21 18 . . 3 2 11 . 3 8 6 13 3 9 25 5 . 6 2 20 26 30 . . . . Drop 253 | . 7 1 25 . 22 17 . 11 9 4 8 . 1 16 8 23 2 4 6 2 1 12 7 12 27 6 1 15 3 3 Fire 1011 | 12 61 20 91 . 75 130 7 5 3 2 43 . 9 54 36 3 20 17 48 27 9 25 . 46 44 169 40 10 4 1 Melee 65 | . . . . . . . . . . . . . . . . . . . . . . . . . 16 49 . . . . Ram 1 | . . . . . . . . . . . . . . . 1 . . . . . . . . . . . . . . . Kick . | . . . . . . . . . . . . . . . . . . . . . . . . . . . . . . . Crush 56 | . 8 5 11 4 12 7 7 . . . . . . 1 . . . . . . . . . . . . 1 . . . Escape Stasis 55 | . . . . . . 9 . . . . . . . . 30 . . . 3 . . . . . . . . 6 . 7 Rewire 121 | . . . . . . . . . . . 8 . . . 112 . . . . . . 1 . . . . . . . . Trap . | . . . . . . . . . . . . . . . . . . . . . . . . . . . . . . . Miscellaneous . | . . . . . . . . . . . . . . . . . . . . . . . . . . . . . . . Route ------- -11/Scrapyard -10/Materials (discovered 6 exits: *Mat x3 / *Min x2 / *Sub) -10/Mines (discovered 4 exits: *Mat x2 / [*Exi] / *Sub) -9/Materials (discovered 4 exits: *Mat x3 / *Min) -9/Mines (discovered 3 exits: *Mat x2 / [*Zio]) -8/Materials (discovered 4 exits: *Fac x2 / *Sto x2) -8/Storage (discovered 2 exits: *Fac / *Rec) -8/Recycling (discovered 2 exits: *Fac / *Scr) -8/Scraptown (discovered 2 exits: *Fac x2) -6/Factory (discovered 6 exits: Fac x4 / *Low x2) -6/Lower Caves -6/Lower Caves (discovered 2 exits: *Fac / *Dat) -6/Data Miner -5/Proximity Caves -5/Factory (discovered 3 exits: Upp / *Ext x2) -5/Extension (discovered 3 exits: *Fac x2 / *Cet) -5/Cetus (discovered 2 exits: *Fac / *Arc) -5/Archives (discovered 3 exits: *Fac / *Hub x2) -5/Hub_04(d) (discovered 4 exits: *Fac x4) -4/Factory -4/Upper Caves -4/Upper Caves -4/Zhirov -3/Proximity Caves -3/Research (discovered 5 exits: *Res x2 / Arm / *Qua x2) -3/Quarantine (discovered 3 exits: Res / *Sec / *Frg) -3/Protoforge -2/Research -2/Testing -1/Access -1/Command To Fleet Rendezvous History --------- Turn | Location | Event 8 | -11/Scrapyard | Discovered new exit (range 16) 175 | -11/Scrapyard | Entered Materials 309 | -10/Materials | Build established: Mutant 505 | -10/Materials | Discovered new exit (range 15) 824 | -10/Materials | Discovered new exit (range 3) 951 | -10/Materials | Identified exit to Materials 990 | -10/Materials | Identified exit to Mines 990 | -10/Materials | Identified exit to Subcaves 1020 | -10/Materials | Learned location of 1 exit from Recycling 1074 | -10/Materials | Learned location of 3 exits from Materials 1114 | -10/Materials | Learned location of Mines (-9) 1688 | -10/Materials | Entered Mines 1727 | -10/Mines | Discovered exit to Materials (range 10) 1965 | -10/Mines | Found a Scrap Suit stashed away for nefarious purposes 1971 | -10/Mines | Found Scrap Suit 2042 | -10/Mines | Received a Mining Laser from a helpful Derelict 2220 | -10/Mines | Found the Drone Emporium 2239 | -10/Mines | Found Prototype Device 2239 | -10/Mines | Identified Splice Drone Bay 2368 | -10/Mines | Assembled infested the area 2373 | -10/Mines | Assisted by a Guerilla fighting off Assembled 2784 | -10/Mines | Deemed a non-threat by the Exiles lab entrance 2784 | -10/Mines | Discovered new exit (range 5) 2851 | -10/Mines | Discovered exit to Subcaves (range 8) 3193 | -10/Mines | Learned Materials stockpile data 3378 | -10/Mines | Discovered exit to Materials (range 15) 3460 | -10/Mines | Learned Materials trap positions 3519 | -10/Mines | Entered Materials 3519 | -9/Materials | Evolved 2 slots: Propulsion x1, Utility x1 3520 | -9/Materials | Identified exit to Materials 3520 | -9/Materials | Identified exit to Mines 3521 | -9/Materials | Loaded intel: 27 trap records 3892 | -9/Materials | Build established: Scavenger-Mutant 4552 | -9/Materials | Destroyed 7 combat bots 4656 | -9/Materials | Learned Materials stockpile data 4840 | -9/Materials | Learned location of 2 exits from Materials 4881 | -9/Materials | Learned location of 1 exit from Storage 4897 | -9/Materials | Central database locked down 4930 | -9/Materials | Learned Storage security intel 4987 | -9/Materials | Learned location of 1 exit from Recycling 5307 | -9/Materials | Build established: Mutant 5726 | -9/Materials | Entered Mines 5751 | -9/Mines | Met a Derelict bent on vengeance 5846 | -9/Mines | Found a hidden stash of uninstalled traps 6138 | -9/Mines | Learned location of Zion (-7) 6281 | -9/Mines | Discovered exit to Materials (range 16) 6354 | -9/Mines | A Derelict revealed a hidden shortcut to a safe place 6662 | -9/Mines | A weapon hastily lodged in a ceiling crevice suddenly fell to the ground 6811 | -9/Mines | Discovered exit to Materials (range 9) 6833 | -9/Mines | Entered Materials 6833 | -8/Materials | Evolved 2 slots: Utility x1, Weapon x1 6834 | -8/Materials | Identified exit to Storage 6834 | -8/Materials | Identified exit to Factory 7218 | -8/Materials | Build established: Scavenger-Gunner 7807 | -8/Materials | Build established: Gunner 8463 | -8/Materials | Central database locked down 8508 | -8/Materials | Discovered exit to Factory (range 7) 9734 | -8/Materials | Discovered exit to Storage (range 11) 10334 | -8/Materials | Entered Storage 10511 | -8/Storage | Garrison activated, responded to threat 11853 | -8/Storage | Learned Storage security intel 11916 | -8/Storage | Learned location of Recycling (-8) 11934 | -8/Storage | First assault squad dispatched 11968 | -8/Storage | Learned location of 1 exit from Recycling 12073 | -8/Storage | Learned location of 1 exit from Extension 12087 | -8/Storage | Learned location of Extension (-5) 12112 | -8/Storage | Learned location of 1 exit from Extension 12148 | -8/Storage | Learned location of 3 exits from Factory 12196 | -8/Storage | Learned location of 3 exits from Factory 12232 | -8/Storage | Repaired Arm. Treads 12271 | -8/Storage | Repaired Minigun+ 12310 | -8/Storage | Repaired Minigun+ 12677 | -8/Storage | Used back door to open Recycling access 12677 | -8/Storage | Discovered new exit (range 3) 12682 | -8/Storage | Entered Recycling 12683 | -8/Recycling | Identified exit to Factory 12684 | -8/Recycling | Identified exit to Scraptown 13376 | -8/Recycling | Learned Storage emergency access door positions 13487 | -8/Recycling | Learned Factory stockpile data 13502 | -8/Recycling | Learned 8 Factory zone layouts 13516 | -8/Recycling | Learned location of 1 exit from Recycling 13559 | -8/Recycling | Learned location of 1 exit from Lower Caves 14087 | -8/Recycling | Scanned before Scraplab entrance 14118 | -8/Recycling | Entered Scraplab 14141 | -8/Recycling | Entered Scraptown 14363 | -8/Scraptown | Visited UFD Registry 14363 | -8/Scraptown | Registered with UFD as "Phasestep" 14421 | -8/Scraptown | Visited Science Guys 14493 | -8/Scraptown | Visited Infowarlord's Domain 14529 | -8/Scraptown | Visited DA-N13 Charitable Foundation 14549 | -8/Scraptown | Found DCF Scrap (28 items) 14596 | -8/Scraptown | Visited Observation Area 14634 | -8/Scraptown | Visited Analyses Database 14686 | -8/Scraptown | Visited Science Testing Area 14710 | -8/Scraptown | Visited Abandonware Association 14733 | -8/Scraptown | Learned abandonware demo "SHUTEYE.EXE" 14733 | -8/Scraptown | Learned abandonware demo "TRNCOAT.EXE" 14782 | -8/Scraptown | Visited Scrap Suit Storage 14856 | -8/Scraptown | Visited Derelict Rescue Squad 15248 | -8/Scraptown | Heard Great Nut preacher, LISTEN AND RECITE! 15463 | -8/Scraptown | Discovered exit to Factory (range 11) 15618 | -8/Scraptown | Visited Awakened 15640 | -8/Scraptown | Visited Assassins FH 15671 | -8/Scraptown | Visited CPS Storage 15781 | -8/Scraptown | Visited Cave Peace 15842 | -8/Scraptown | Visited CR-KLE's Repair Center 15871 | -8/Scraptown | Visited Symbiants 15922 | -8/Scraptown | Visited TADAMA 17322 | -8/Scraptown | Visited Scrapoid Pod Storage 18075 | -8/Scraptown | Found Exp. Terrain Scan Processor 18369 | -8/Scraptown | Found Scrap Suit 18859 | -8/Scraptown | Found Scrapoid Pod 20021 | -8/Scraptown | Scrapoid Pod released 08S05-D (x5) 20158 | -8/Scraptown | Attached CPS modules to 08S03-D. 20163 | -8/Scraptown | Attached CPS modules to 08S05-D. 20175 | -8/Scraptown | Attached CPS modules to 08S01-D. 20177 | -8/Scraptown | Attached CPS modules to 08S04-D. 20187 | -8/Scraptown | Attached CPS modules to 08S03-D. 21595 | -8/Scraptown | CR-KLE repaired 6 parts 22038 | -8/Scraptown | Met Optimus 22038 | -8/Scraptown | Accepted into 0bPrime 22162 | -8/Scraptown | Entered Factory 22162 | -6/Factory | Accompanied by 5 allies 22162 | -6/Factory | Evolved 4 slots: Power x1, Propulsion x1, Utility x2 22163 | -6/Factory | Identified exit to Factory 22163 | -6/Factory | Identified exit to Lower Caves 22248 | -6/Factory | Central database locked down 22505 | -6/Factory | Found Active Sensor Suite 22555 | -6/Factory | Build established: Scavenger-Gunner 22671 | -6/Factory | Scrapoids reinforcements arrived? 22684 | -6/Factory | Entered Lower Caves 22684 | -6/Lower Caves | Accompanied by 9 allies 22685 | -6/Lower Caves | Identified exit to Lower Caves 22961 | -6/Lower Caves | Build established: Commander-Gunner 23133 | -6/Lower Caves | Encountered a Warlord checkpoint 23252 | -6/Lower Caves | Ambushed by research squad 23407 | -6/Lower Caves | Entered another Lower Caves area 23407 | -6/Lower Caves | Accompanied by 6 allies 23409 | -6/Lower Caves | Attracted the attention of an 0b10 outpost 23469 | -6/Lower Caves | Lost 5 allies 23489 | -6/Lower Caves | Found Scrap Suit 23492 | -6/Lower Caves | Destroyed 9 combat bots 23565 | -6/Lower Caves | Build established: Gunner 23592 | -6/Lower Caves | Discovered exit to Factory (range 11) 23773 | -6/Lower Caves | Learned 8 Factory zone layouts 24016 | -6/Lower Caves | Learned Factory stockpile data 24158 | -6/Lower Caves | Build established: Scavenger-Scrapper 24396 | -6/Lower Caves | Discovered new exit (range 9) 24648 | -6/Lower Caves | Entered Data Miner 24648 | -6/Data Miner | Accompanied by 3 allies 24648 | -6/Data Miner | Discovered new exit (range 6) 24684 | -6/Data Miner | Met Data Miner 24719 | -6/Data Miner | Learned location of Section 7 (-3) 24719 | -6/Data Miner | Acquired the access code to Warlord's prototype stash 24732 | -6/Data Miner | Received God Mode back door access code from Data Miner 24779 | -6/Data Miner | Entered Proximity Caves 24779 | -5/Proximity Caves | Accompanied by 3 allies 24783 | -5/Proximity Caves | Spotter reported a threat 24901 | -5/Proximity Caves | Spotter reported a threat 25035 | -5/Proximity Caves | Discovered exit to Factory (range 7) 25154 | -5/Proximity Caves | Learned Factory machine intel 25228 | -5/Proximity Caves | Learned 4 Factory zone layouts 25410 | -5/Proximity Caves | Entered Factory 25410 | -5/Factory | Evolved 2 slots: Utility x2 25411 | -5/Factory | Identified exit to Upper Caves 25411 | -5/Factory | Identified exit to Extension 25414 | -5/Factory | Loaded intel: 325 machine locations 26326 | -5/Factory | Scrapoid reinforcements arrived 26362 | -5/Factory | Cargo convoy interrupted 26414 | -5/Factory | Entered Extension 26414 | -5/Extension | Accompanied by 5 allies 26415 | -5/Extension | Identified exit to Factory 26973 | -5/Extension | Rescued a captive Derelict 26973 | -5/Extension | Rescued a captive Derelict 27157 | -5/Extension | Build established: Commander-Scrapper 27304 | -5/Extension | Spotted B-75 Beast 27307 | -5/Extension | Allies destroyed B-75 Beast 27321 | -5/Extension | Spotted B-75 Beast 27330 | -5/Extension | Allies destroyed B-75 Beast 27390 | -5/Extension | Found Scrap Suit 27406 | -5/Extension | Lost 5 allies 27434 | -5/Extension | Rescued A7 27514 | -5/Extension | Rescued a captive Derelict 27600 | -5/Extension | Rescued a captive Derelict 27726 | -5/Extension | Scrapoids reinforcements arrived? 27728 | -5/Extension | Scrapoid reinforcements arrived 27797 | -5/Extension | Lost 3 allies 27837 | -5/Extension | Discovered new exit (range 6) 27843 | -5/Extension | Identified exit to Cetus 28040 | -5/Extension | Entered Cetus 28040 | -5/Cetus | Accompanied by 25 allies (A7) 28045 | -5/Cetus | Acquired a Cetus Manufacturing Module code from A7 28093 | -5/Cetus | Spotted Cetus Guard 28093 | -5/Cetus | Spotted Cetus Guard 28097 | -5/Cetus | Spotted Cetus Guard 28097 | -5/Cetus | Spotted Cetus Guard 28100 | -5/Cetus | Attached CPS modules to Cetus Guard. 28104 | -5/Cetus | Attached CPS modules to Cetus Guard. 28107 | -5/Cetus | Allies destroyed Cetus Guard 28113 | -5/Cetus | Allies destroyed Cetus Guard 28121 | -5/Cetus | Allies destroyed Cetus Guard 28122 | -5/Cetus | Allies destroyed Cetus Guard 28150 | -5/Cetus | Lost 3 allies 28234 | -5/Cetus | Started Cetus Manufacturing Module 28251 | -5/Cetus | Escorted A7 to Cetus Mainframe 28259 | -5/Cetus | Manufactured an Enhanced Grunt 28284 | -5/Cetus | Manufactured an Enhanced Grunt 28309 | -5/Cetus | Manufactured an Enhanced Grunt 28334 | -5/Cetus | Manufactured an Enhanced Grunt 28359 | -5/Cetus | Manufactured an Enhanced Grunt 28385 | -5/Cetus | Discovered new exit (range 15) 28461 | -5/Cetus | Spotted Cetus Guard 28461 | -5/Cetus | Spotted Cetus Guard 28462 | -5/Cetus | Spotted Cetus Guard 28463 | -5/Cetus | Spotted Cetus Guard 28465 | -5/Cetus | Allies destroyed Cetus Guard 28467 | -5/Cetus | Allies destroyed Cetus Guard 28472 | -5/Cetus | Allies destroyed Cetus Guard 28473 | -5/Cetus | Allies destroyed Cetus Guard 28477 | -5/Cetus | Discovered exit to Factory (range 15) 28485 | -5/Cetus | Met Revision 17 28494 | -5/Cetus | Lost 4 allies 28566 | -5/Cetus | Identified exit to Archives 28790 | -5/Cetus | Security sweep announced 28808 | -5/Cetus | Entered Archives 28808 | -5/Archives | Accompanied by 21 allies (A7) 28813 | -5/Archives | Received a hacking code to weaken MAIN.C 28861 | -5/Archives | Discovered new exit (range 16) 28879 | -5/Archives | Discovered exit to Factory (range 16) 28909 | -5/Archives | Discovered new exit (range 15) 28963 | -5/Archives | Identified exit to Hub_04(d) 29420 | -5/Archives | Entered Hub_04(d) 29420 | -5/Hub_04(d) | Accompanied by 20 allies 29523 | -5/Hub_04(d) | Spotted B-75 Beast 29530 | -5/Hub_04(d) | Allies destroyed B-75 Beast 29736 | -5/Hub_04(d) | Lost 3 allies 29854 | -5/Hub_04(d) | Network Hub disabled 29857 | -5/Hub_04(d) | Spotted Lightning 29859 | -5/Hub_04(d) | Spotted Lightning 29860 | -5/Hub_04(d) | Spotted Lightning 29863 | -5/Hub_04(d) | Garrison activated, responded to threat 29867 | -5/Hub_04(d) | Allies destroyed Lightning 29868 | -5/Hub_04(d) | Spotted Lightning 29869 | -5/Hub_04(d) | Spotted Lightning 29872 | -5/Hub_04(d) | Destroyed Lightning 29873 | -5/Hub_04(d) | Spotted Lightning 29883 | -5/Hub_04(d) | Spotted Lightning 29885 | -5/Hub_04(d) | Entered Factory 29885 | -4/Factory | Accompanied by 1 ally 29885 | -4/Factory | Evolved 2 slots: Propulsion x1, Utility x1 29910 | -4/Factory | Lost 16 allies 30174 | -4/Factory | Build established: Scavenger-Scrapper 30504 | -4/Factory | Discovered new exit (range 14) 30583 | -4/Factory | Identified exit to Upper Caves 30594 | -4/Factory | Build established: Scavenger-Tank 30913 | -4/Factory | Entered Upper Caves 31025 | -4/Upper Caves | Learned location of 1 exit from Proximity Caves 31214 | -4/Upper Caves | Attracted the attention of an 0b10 checkpoint 31318 | -4/Upper Caves | Found DCF Scrap (15 items) 31467 | -4/Upper Caves | Spotted B-86 Titan 32406 | -4/Upper Caves | Discovered new exit (range 5) 32410 | -4/Upper Caves | Identified exit to Upper Caves 32430 | -4/Upper Caves | Entered another Upper Caves area 32546 | -4/Upper Caves | Learned location of 1 exit from Research 33094 | -4/Upper Caves | Discovered new exit (range 8) 33102 | -4/Upper Caves | Identified exit to Zhirov 33140 | -4/Upper Caves | Entered Zhirov 33142 | -4/Zhirov | Discovered new exit (range 3) 33165 | -4/Zhirov | Met Zhirov 33212 | -4/Zhirov | Zhirov requested help retrieving the SGEMP Prototype 33236 | -4/Zhirov | Found Alien Artifact 33236 | -4/Zhirov | Identified Integrated Reactor 33236 | -4/Zhirov | Installed Integrated Reactor, increased core energy generation (+10) 33253 | -4/Zhirov | Found Alien Artifact 33431 | -4/Zhirov | Build established: Scavenger-Mutant 33643 | -4/Zhirov | Identified exit to Proximity Caves 33644 | -4/Zhirov | Entered Proximity Caves 33645 | -3/Proximity Caves | Identified exit to Research 33934 | -3/Proximity Caves | Build established: Scavenger-Tank 34642 | -3/Proximity Caves | System corruption reached 10% 34649 | -3/Proximity Caves | Entered Research 34649 | -3/Research | Evolved 2 slots: Propulsion x2 34650 | -3/Research | Identified exit to Armory 34734 | -3/Research | Discovered new exit (range 13) 34751 | -3/Research | Identified exit to Research 34849 | -3/Research | Revision forces began assault on 0b10 34910 | -3/Research | Identified exit to Quarantine 34938 | -3/Research | Build established: Scavenger-Skirmisher 34998 | -3/Research | Met up with Revision 17++ 35157 | -3/Research | Spotted B-90 Cyclops 35293 | -3/Research | Discovered exit to Research (range 24) 35304 | -3/Research | Found Prototype Launcher 35304 | -3/Research | Identified Com. Tesla Bomb Launcher 35349 | -3/Research | Research terminal network offline 35405 | -3/Research | Spotted Striker 35433 | -3/Research | Build established: Skirmisher 35440 | -3/Research | Destroyed Striker 35468 | -3/Research | Lost 3 allies 35605 | -3/Research | Spotted Striker 35605 | -3/Research | Entered Quarantine 35713 | -3/Quarantine | Found Alien Artifact 35713 | -3/Quarantine | Identified Core Reset Matrix 35713 | -3/Quarantine | Identified Transdimensional Reconstructor 35713 | -3/Quarantine | Used Core Reset Matrix 35717 | -3/Quarantine | Detected hypermatrix surge 35717 | -3/Quarantine | Sensed 13 artifacts in vicinity 35802 | -3/Quarantine | Found Sigix Broadsword 35895 | -3/Quarantine | Found Core Stripper 35911 | -3/Quarantine | Discovered exit to Research (range 24) 35921 | -3/Quarantine | Found Subatomic Replicator 35942 | -3/Quarantine | Cryocooling Duct disabled 35957 | -3/Quarantine | Ambient heat levels rising (+20) 35957 | -3/Quarantine | Non-combat units ordered to evacuate 35995 | -3/Quarantine | Found Matter Drive 36067 | -3/Quarantine | System corruption reached 10% 36128 | -3/Quarantine | Found Hpw. Transdimensional Reconstructor 36141 | -3/Quarantine | Found Dimensional Node Initializer 36160 | -3/Quarantine | Found Unknown Device 36160 | -3/Quarantine | Identified Launcher Loader 36243 | -3/Quarantine | Spotted Fortress 36266 | -3/Quarantine | Destroyed Fortress 36281 | -3/Quarantine | Found Prototype Device 36281 | -3/Quarantine | Identified Exp. EM Shield 36288 | -3/Quarantine | Found Prototype Device 36295 | -3/Quarantine | Lost 3 parts (1p1n1u) 36305 | -3/Quarantine | Found Prototype Device 36314 | -3/Quarantine | Found Prototype Reactor 36314 | -3/Quarantine | Identified Vortex Chain Reactor 36364 | -3/Quarantine | Found Vortex Chain Reactor 36408 | -3/Quarantine | Identified Exp. Force Field 36411 | -3/Quarantine | Identified Thermal Barrier 36432 | -3/Quarantine | Build established: Alien-Mutant 36506 | -3/Quarantine | Discovered new exit (range 21) 36524 | -3/Quarantine | Discovered new exit (range 9) 36535 | -3/Quarantine | Identified exit to Protoforge 36543 | -3/Quarantine | Identified exit to Section 7 36555 | -3/Quarantine | Entered Protoforge 36556 | -3/Protoforge | Sensed 2 artifacts in vicinity 36771 | -3/Protoforge | Spotted Hotshot 36771 | -3/Protoforge | Spotted Hotshot 36771 | -3/Protoforge | Spotted Hotshot 36791 | -3/Protoforge | Destroyed Hotshot 36829 | -3/Protoforge | Destroyed Hotshot 37127 | -3/Protoforge | Initialized slip node 37202 | -3/Protoforge | Spotted Hotshot 37202 | -3/Protoforge | Spotted Hotshot 37202 | -3/Protoforge | Spotted Hotshot 37227 | -3/Protoforge | Destroyed Hotshot 37485 | -3/Protoforge | Superfortress began startup sequence 37630 | -3/Protoforge | Found Prototype Device 37644 | -3/Protoforge | Spotted Immortal 37944 | -3/Protoforge | Spotted Immortal 37946 | -3/Protoforge | Spotted Decapitator 37946 | -3/Protoforge | Spotted Decapitator 37946 | -3/Protoforge | Spotted Decapitator 37946 | -3/Protoforge | Spotted Decapitator 37953 | -3/Protoforge | Destroyed Decapitator 37956 | -3/Protoforge | Destroyed Decapitator 37959 | -3/Protoforge | Destroyed Decapitator 37962 | -3/Protoforge | Destroyed Decapitator 38025 | -3/Protoforge | System corruption reached 30% 38221 | -3/Protoforge | Forge Plexus network access discovered 38224 | -3/Protoforge | Spotted Decapitator 38224 | -3/Protoforge | Spotted Decapitator 38225 | -3/Protoforge | Spotted Decapitator 38226 | -3/Protoforge | Spotted Decapitator 38226 | -3/Protoforge | Spotted Decapitator 38228 | -3/Protoforge | Destroyed Decapitator 38230 | -3/Protoforge | Destroyed Decapitator 38233 | -3/Protoforge | Destroyed Decapitator 38234 | -3/Protoforge | Destroyed Decapitator 38235 | -3/Protoforge | Destroyed Decapitator 38256 | -3/Protoforge | Destroyed 8 combat bots 38282 | -3/Protoforge | Lost 5 parts (1p2n1u1w) 38305 | -3/Protoforge | First assault squad dispatched 38334 | -3/Protoforge | Incoming assault squad redirected 38355 | -3/Protoforge | Incoming assault squad redirected 38358 | -3/Protoforge | Incoming assault squad redirected 38452 | -3/Protoforge | Spotted Decapitator 38452 | -3/Protoforge | Spotted Decapitator 38556 | -3/Protoforge | Spotted Immortal 38556 | -3/Protoforge | Spotted Immortal 38577 | -3/Protoforge | Incoming assault squad redirected 38604 | -3/Protoforge | Found Faulty Cep. Biometal Exoskeleton 38621 | -3/Protoforge | Spotted V387-m 38622 | -3/Protoforge | Spotted V702-p 38622 | -3/Protoforge | Spotted V176-q 38661 | -3/Protoforge | Warped through subspace to slip node 38662 | -3/Protoforge | Core integrity fell below 50% 38690 | -3/Protoforge | Lost 5 parts (1p1u3w) 38723 | -3/Protoforge | Entered Research 38723 | -2/Research | Evolved 2 slots: Propulsion x1, Utility x1 38867 | -2/Research | Discovered new exit (range 24) 38999 | -2/Research | System corruption reached 10% 39011 | -2/Research | Entered Testing 39033 | -2/Testing | Lost 5 parts (1p1n2u1w) 39294 | -2/Testing | Identified exit to Access 39347 | -2/Testing | Entered Access 39347 | -1/Access | Evolved 2 slots: Utility x2 39509 | -1/Access | Identified exit to Command 39574 | -1/Access | Entered Command 39584 | -1/Command | Disengaged cave seal 39598 | -1/Command | Spotted B-99 Colossus 39665 | -1/Command | Incoming investigation squad redirected 39709 | -1/Command | Spotted Alpha 7 39720 | -1/Command | Spotted Executioner 39720 | -1/Command | Spotted Executioner 39720 | -1/Command | Spotted Executioner 39720 | -1/Command | Spotted Executioner 39720 | -1/Command | Spotted Striker 39720 | -1/Command | Spotted Striker 39720 | -1/Command | Spotted Alpha 7 39721 | -1/Command | Failed to warp due to unstable space 39722 | -1/Command | Spotted B-99 Colossus 39725 | -1/Command | Spotted B-99 Colossus 39729 | -1/Command | Core integrity fell below 50% 39729 | -1/Command | Discovered new exit (range 9) 39732 | -1/Command | Identified exit to Surface 39733 | *** | Heading to fleet! Last Messages --------------- 39729_ Slug penetrates B-99 Colossus. 39729_ Acquired 7 matter. 39730_ Triggered Stasis Trap. 39730_ A bubble of rippling energy engulfs the area. 39730_ Field strength at 80. 39730_ Slug penetrates B-99 Colossus. 39730_ Penetrated by Slug. 39730_ Slug penetrates B-99 Colossus. 39730_ Penetrated by Slug. 39730_ Field strength at 43. 39731_ Field strength at 23. 39731_ Slug penetrates Reinforced Barrier. 39731_ Penetrated by Slug. 39731_ Cld. Q-thruster destroyed. 39732_ Stasis field depleted. 39732_ Slug penetrates Wall. 39732_ Slug penetrates Executioner. 39732_ Penetrated by Slug. 39732_ EXIT=IDENTIFIED: SURFACE Map ----- +----------------------------------------------------+ | ???????????????????????????????????????????????# | | ???????????????????????????????????????????????# | | ??????????????????????????????????????????????## | | ??????????????????????????????????????????????? | | ???????????????????????????????????????????????# | | ???????????????????????????????????????????????# | | ???????????????????????????????????????????????# | | ???????????????????????????????????????????????# | | ???????????????????????????????????????????????# | | ???????????????????????????????????????????????# | | ???????????????????????????????????????????????# | | ???????????????????????????????????????????????# | | ???????????????????????????????????????????????# | | ???????????????????????????????????????????????# | | ????????????????????????????????????????????###### | | ????????????????????????????????????????????# | | ????????????????????????????????????????????# | | ??????????????????????????###???????????????# | | ???????????????????########;#####???????????# | | ???????????????????# #???????????# | | ???????????????????# % %#########???# | | ???????????????????# ^ BB; ; # ; ##### | | ???????????????????# BB E 7 ##"##### | | ???????????????????# % ^E ^p^ "% | | ???????????????????# "" ^ K % + | | ???????????????????# @" ^ K p + | | ???????????????????# E E ^+ | | ???????????????????# BB ^ #"# # | | ???????????????????# BB; # # # ##### # | | ???????????????????# #########???# # | | ???????????????????# #???????????# # | | ???????????????????#;############???????????# # | | ???????????????????##???????????????????????# # | | ????????????????????????????????############# # | | ????????????????????????????????# + # | | ????????????????????????????????# # + | | ????????????????????????????????# # # | | ????????????????????????????????# # # | | ????????????????????????????????# # | | ????????????????????????????????# """ """ # | | ????????????????????????????????# """T""" # | | ????????????????????????????????############# | | ????????????????????????????????????????????##+### | | ????????????????????????????????????????????? ??? | | ?????????????????????????????????????????????? ??? | | ?????????????????????????????????????????????????? | | ?????????????????????????????????????????????????? | | ?????????????????????????????????????????????????? | | ?????????????????????????????????????????????????? | | ?????????????????????????????????????????????????? | +----------------------------------------------------+ Best States ------------- Heat Dissipation 77 Coolant Potential 100 Energy Generation 65 Energy Capacity 1090 Matter Stores 300 Matter Capacity 300 Sight Range 16 Robot Scan Range 16 Terrain Scan Range 24 Terrain Scan Density 1010 Jamming Range 14 Armor Coverage 600 Resistance: TH 50 Resistance: EM 75 Point Defense Rating 240 Weapon Cycling 25 Evasion (%) 82 Targeting Accuracy 8 Melee Accuracy 8 Recoil Reduction 10 Salvage Targeting 4 Offensive Hacking 14 Defensive Hacking 12 Item Schematics ----------------- None Robot Schematics ------------------ None Fabricated ------------ Nothing Repaired ---------- Arm. Treads | 39% | -8/Storage Minigun | 44% | -8/Storage Minigun | 48% | -8/Storage Studied --------- None Alien Tech Used ----------------- Integrated Reactor Core Reset Matrix Sigix Broadsword Core Stripper Dimensional Node Initializer High-powered Transdimensional Reconstructor Transdimensional Reconstructor Achievements -------------- Construction Begets Destruction Ew, Corruption Jackpot Partsplosion Recruitment Drive Tank Life Challenges ------------ None Game ------ Seed HoverTerrorDerivative Manual? 0 Play Time 04:06:05 Cumulative 235.8 hours Start 2025.11.08 @ 21:18:01 End 2025.11.09 @ 19:00:43 Sessions 22 Manual Loads 0 Difficulty Rogue Special Mode None Game No. 134 Rogue 134 Adventurer 0 Explorer 0 Win Type 2 Total 28 Types 12/1/11/1/0/1/1/1/0/0 Lore% 80 Gallery% 69 Achievement% 54 Wizard Run 0 Options --------- Layout 1 ASCII 0 Keyboard 0 Movement Arrows Keybinds 0 Fullscreen 2 Font 24/Tamsyn Map View 50x35 Zoom Use 0% Tactical HUD 1 Map Filters NONE Filters NONE Steam 1 RUN: 717aba3a-046e-48af-b256-b76c885331ee